{"text_format":"1","workbook":"xlsx","n_sheets":24,"sheets":["Guidance","Youth Insight","Project 1","Project 2","Project 3","Project 4","Project 5","Project 6","Project 7","Project 8","Project 9","Project 10","Project 11","Project 12","Project 13","Project 14","Project 15","Project 16","Project 17","Project 18","Project 19","Project 20",".","Sheet2"],"not_rendered":{"charts":0,"images":5,"macros":1,"external_links":1,"defined_names":3,"comments":0,"pivot_tables":0},"unopened":[],"bounds":{"document_bytes":16777216,"sheet_cells":100000,"rows_first":2000,"rows_last":500,"rows_between":2000,"halvings":0,"cell_chars":16384,"cell_head_chars":4096},"cells_cut":0,"cells_raw":0,"read":"whole","date_system":"1900"}

{"sheet":"Guidance","index":0,"n_rows":51,"n_cols":20,"rows_kept":51,"cut":false,"hidden":false,"merged":[[41,1,41,11],[41,12,41,22],[48,1,48,22],[42,1,42,22],[43,1,43,22],[44,1,44,7],[44,8,44,15],[44,16,44,22],[46,1,46,13],[46,14,46,22],[31,1,31,22],[32,1,32,22],[33,1,33,22],[39,1,39,22],[40,1,40,22],[35,1,35,22],[36,1,36,22],[37,1,37,22],[34,1,34,22],[29,7,29,9],[29,10,29,12],[29,13,29,15],[23,1,23,22],[24,1,24,22],[26,1,26,22],[27,1,27,22],[28,1,28,22],[29,16,29,18],[29,19,29,22],[22,1,22,22],[14,1,14,11],[14,12,14,22],[15,1,15,11],[15,12,15,22],[16,1,16,11],[16,12,16,22],[17,1,17,11],[17,12,17,22],[19,1,19,22],[20,1,20,22],[21,1,21,22],[29,1,29,3],[29,4,29,6],[10,1,10,22],[11,1,11,22],[12,1,12,11],[12,12,12,22],[13,1,13,11],[13,12,13,22],[1,0,1,22],[4,1,4,22],[6,1,6,22],[7,1,7,22],[8,1,8,11],[8,12,8,22]]}
[]
["Satellite Club Application Guidance"]
[]
[]
[null,"Prior to completing the Satellite Club Application Form, please read the following information carefully"]
[]
[null,"Eligibility"]
[null,"In order to be eligible to receive Satellite Clubs funding, you must:"]
[null,"ü Start delivery before 31 October 2016\nü Deliver your Satellite club on a new site away from the ‘hub’ club site\nü Ensure the Satellite club is delivered by coaches/volunteers from the hub club\nü Provide new opportunities for 14-25 year olds to take part in physical activity and sport\nü Deliver activity specifically for 14-25 year olds\nü Deliver your Satellite club for 30 weeks (not necessarily consecutive weeks)",null,null,null,null,null,null,null,null,null,null,"ü Demonstrate there is a need and demand for the Satellite club\nü Operate with a safeguarding children and young people policy\nü Operate with a health and safety policy\nü Achieve 30 unique participants over the 30 week period; 20% of which need to be  previously\n       ‘inactive’* participants and 50% must be retained**\nü Be self-sustainable and continue delivery beyond the funding period"]
[]
[null,"Assessment Criteria"]
[null,"Clubs will be assessed on their ability to demonstrate the following:"]
[null,"Criteria",null,null,null,null,null,null,null,null,null,null,"Evidence"]
[null,"Need and demand",null,null,null,null,null,null,null,null,null,null,"You clearly demonstrate there is need and demand for your Satellite Club(s)"]
[null,"You must understand your target audience and deliver the right experience to meet participants' needs",null,null,null,null,null,null,null,null,null,null,"You clearly outline who your target audience is and how you will go about engaging and retaining participants"]
[null,"Sustaining the Satellite Club beyond the funding period",null,null,null,null,null,null,null,null,null,null,"You have a clear and robust strategy for how you will sustain your Satellite Club beyond the funding period"]
[null,"Communication with and confirmation from venue and engaged school(s)/college(s)",null,null,null,null,null,null,null,null,null,null,"You must agree with the venue and engaged school(s)/college(s) that you will deliver this project"]
[null,"You must engage at least one school/college in your Satellite Club",null,null,null,null,null,null,null,null,null,null,"If delivering away from a school/college site, you should directly engage with at least one school/college^"]
[]
[null,"Conditions of Funding"]
[null,"Successful clubs must agree to the following:"]
[null,"Keep London Sport fully informed of progress and issues associated with the Satellite Club"]
[null,"Respect and maintain the ethos of the Satellite Clubs programme"]
[null,"Use the funding solely for the delivery of the Satellite Club, as detailed in the application form"]
[null,"Embrace the opportunity to get young people more active!"]
[]
[null,"Monitoring & Evaluation"]
[null,"All clubs fully funded by London Sport are required to submit monitoring data when requested to do so. You will be provided submission deadlines which must be adhered to"]
[null,"We will request the following information for each participant:"]
[null,"Name",null,null,"Age",null,null,"Gender",null,null,"Email Address",null,null,"Postcode",null,null,"Ethnicity",null,null,"Previous activity levels"]
[]
[null,"Our Support"]
[null,"London Sport offers the following support to clubs and organisations delivering a Satellite club:"]
[null,"Marketing material to help promote and advertise your Satellite club"]
[null,"Support with brokering links with venues to deliver your Satellite club at – schools, colleges, universities"]
[null,"Advice and support with how to sustain your Satellite clubs"]
[null,"Advice and support with how to deliver appropriate sessions to the target audience"]
[null,"Support with recruiting and training new coaches and volunteers  "]
[]
[null,"Funding Process"]
[null,"Successful clubs and organisations will receive funding in two instalments;"]
[null,"50% at the start of delivery ",null,null,null,null,null,null,null,null,null,null,"Remaining 50% after 30 weeks of delivery"]
[]
[null,"The second funding instalment is only paid once the you have met specific criteria;"]
[null,"ü Achieved your participant targets set out in your application",null,null,null,null,null,null,"ü Completed and returned all participant data accurately and on time",null,null,null,null,null,null,null,"ü Implemented a sustainability strategy"]
[]
[null,"If you have any questions, please get in touch with the team via",null,null,null,null,null,null,null,null,null,null,null,null,"satelliteclubs@londonsport.org"]
[]
[null,"*Inactivity is defined as having done less than 30 minutes sport in the previous 4 weeks outside of curriculum time sport"]
[null,"** 'Retained' is defined as attending at least 15 sessions"]
[null,"^In exceptional cirumstances, we will provide support with communicating with schools and college. You must contact the team directly if you require support"]

{"sheet":"Youth Insight","index":1,"n_rows":90,"n_cols":21,"rows_kept":90,"cut":false,"hidden":true,"merged":[[77,18,78,19],[80,16,82,21],[83,16,86,21],[89,16,92,21],[60,15,63,21],[69,16,72,21],[73,16,74,17],[73,18,74,19],[73,20,74,21],[75,17,76,18],[75,19,76,20],[52,1,56,2],[52,3,56,8],[52,9,56,13],[57,1,63,2],[57,3,63,8],[57,9,63,13],[36,1,42,2],[36,3,42,8],[36,9,42,13],[43,1,51,2],[43,3,51,8],[43,9,51,13],[29,1,29,2],[29,3,29,8],[29,9,29,13],[29,15,33,20],[30,1,35,2],[30,3,35,8],[30,9,35,13],[1,0,1,22],[4,1,4,22],[6,1,7,22],[21,9,23,14],[24,9,25,10],[24,11,25,12],[24,13,25,14]]}
[]
["Youth Insight"]
[]
[]
[null,"The Youth Insight is the result of a research project conducted by Sport England to better understand young people's attitude and behaviour towards sport"]
[]
[null,"The findings show that, unlike traditional thinking, attitudes are not linked to behaviour and vice versa; someone may have a good attitude towards sport, e.g. they enjoy it, but they don't necessarily take part regularly. The Youth Insight findings teach us to change our thinking and understand that the relationship between attitude towards sport and behaviour is not linear."]
[]
[]
[]
[]
[]
[]
[]
[]
[]
[]
[]
[]
[]
[]
[null,null,null,null,null,null,null,null,null,"The Youth Insight findings show that there are 3 attitude groups;"]
[]
[]
[null,null,null,null,null,null,null,null,null,"Positive",null,"Functional",null,"Uninterested"]
[]
[]
[]
[]
[null,"Group",null,"About This Group",null,null,null,null,null,"Top Tips",null,null,null,null,null,"The three attitudes can be further broken down into 5 groups"]
[null,"Group 1: Positive & consistently active",null,"Young people in this group have a positive attitude towards physical activity and sport and this is directly reflected in their behaviour. Physical activity and sport is the norm for them and it makes up part of their routine. You should not be targeting young people in this group as they are already consistently active",null,null,null,null,null,"N/A"]
[]
[]
[]
[]
[]
[null,"Group 2: Positive & consistently inactive",null,"Despite having a positive attitude towards physical activity and sport, young people in this group do not regularly take part in physical activity or sport. Young people in this group enjoy physical activity and sport but it is not the norm for them and they prioritise other commitments",null,null,null,null,null,"\u009f Make sport visible in everyday life, e.g. taster sessions, assemblies, social media \n\u009f Send emails/texts to remind participants to bring their kit, next session reminder\n\u009f Key wording in promotion, e.g. \"try something new\", \"get back into sport\""]
[]
[]
[]
[]
[]
[]
[null,"Group 3: Functional / Uninterested & consistently active / irregular participation",null,"This is the largest group, with 30% of young people falling in this category. Young people in this group participate in physical activity and sport for the wider benefits associated with the activity, rather than the activity itself, e.g. to get fit and healthy, lose weight, socialise with friends, meet new people, stress relief from exams/work. This group is made up of mostly females; so you should consider targeting this group if you're delivering female only sessions OR want to attract more females to your sessions. ",null,null,null,null,null,"\u009f Do not use the word 'fun' - this group do not necessarily find physical activity and sport fun\n\u009f Promote and focus on the added benefits of the activity rather than the activity itself\n\u009f Understand what your participants want to get out of the sessions\n\u009f Ensure participants have something to work towards to keep them motivated"]
[]
[]
[]
[]
[]
[]
[]
[]
[null,"Group 4: Functional & consistently inactive",null,"Sport is not 'fun' for this group. They appreciate the wider benefits physical activity and sport has to offer but they need something to work towards. Having goals is important to this group. Young people in this group can shift up to group 3 if goals are developed",null,null,null,null,null,"\u009f As with group 3, do not promote the activity as 'fun' - promote the wider benefits with taking part\n\u009f Ensure participants have something to work towards to prevent inactivity"]
[]
[]
[]
[]
[null,"Group 5: Uninterested & consistently inactive",null,"This is the most challenging group to engage. Young people in this group will likely have similar goals to those in groups 3 and 4, but won't see physical activity and sport as a way of achieving this. They are likely to have negative associations with sport due to previous negative experiences and fear of embarrassment and judgement",null,null,null,null,null,"\u009f Promote your activity as something different - not traditional sport\n\u009f Deliver age-restricted activity, e.g. 14-16, 16-18, 18+\n\u009f Create a non-competitive environment and level playing field, e.g. split groups based on ability - not the 'best' playing against the 'worst'"]
[]
[]
[null,null,null,null,null,null,null,null,null,null,null,null,null,null,null,"Remember - when targeting the Functional and Uninterested group, the activity may be sport but the messaging doesn’t have to be"]
[]
[]
[]
[]
[]
[]
[]
[]
[null,null,null,null,null,null,null,null,null,null,null,null,null,null,null,null,"Generally speaking, young people are seeking 6 key experiences from an activity;"]
[]
[]
[]
[null,null,null,null,null,null,null,null,null,null,null,null,null,null,null,null,"Interactive",null,"Social",null,"Rewarding"]
[]
[null,null,null,null,null,null,null,null,null,null,null,null,null,null,null,null,null,"Personalised",null,"Inspiring"]
[]
[null,null,null,null,null,null,null,null,null,null,null,null,null,null,null,null,null,null,"Creative"]
[]
[]
[null,null,null,null,null,null,null,null,null,null,null,null,null,null,null,null,"These are the building blocks to create an 'unmissable experience'"]
[]
[]
[null,null,null,null,null,null,null,null,null,null,null,null,null,null,null,null,"Consider the experiences young people are seeking and how you can adopt techniques to offer an 'unmissable experience'"]
[]
[]
[]
[]
[]
[null,null,null,null,null,null,null,null,null,null,null,null,null,null,null,null,"Remember - it’s all trial and error. If one technique doesn’t work for your session, just try something else!"]

{"sheet":"Project 1","index":2,"n_rows":51,"n_cols":23,"rows_kept":51,"cut":false,"hidden":true,"merged":[[29,3,29,23],[30,3,30,6],[30,7,30,9],[30,18,30,20],[30,21,30,23],[32,3,37,5],[32,6,32,23],[33,6,33,11],[33,12,33,23],[34,6,34,11],[34,12,34,23],[35,6,35,11],[35,12,35,23],[36,6,36,11],[36,12,36,23],[37,6,37,11],[37,12,37,23],[26,3,27,3],[26,6,27,6],[26,9,27,11],[26,12,27,14],[26,15,27,17],[26,18,28,23],[28,3,28,5],[28,6,28,8],[28,9,28,11],[28,12,28,14],[28,15,28,17],[22,3,22,5],[22,6,22,8],[22,9,22,11],[22,12,22,14],[22,15,22,17],[22,18,22,20],[22,21,22,23],[24,3,24,23],[25,3,25,5],[25,6,25,8],[25,9,25,11],[25,12,25,14],[25,15,25,17],[25,18,25,23],[19,15,19,17],[19,18,19,20],[19,21,19,23],[21,3,21,5],[21,6,21,8],[21,9,21,11],[21,12,21,14],[21,15,21,17],[21,18,21,20],[21,21,21,23],[13,1,37,2],[13,3,13,23],[14,3,14,7],[14,8,14,11],[14,12,14,14],[14,15,14,17],[14,18,14,20],[14,21,14,23],[15,3,15,7],[15,8,15,11],[15,12,15,14],[15,15,15,17],[15,18,15,20],[15,21,15,23],[17,3,17,23],[18,3,18,8],[18,9,18,11],[18,12,18,14],[18,15,18,17],[18,18,18,20],[18,21,18,23],[19,3,19,8],[19,9,19,11],[19,12,19,14],[41,1,41,21],[40,1,40,21],[39,1,39,21],[39,22,39,23],[40,22,40,23],[41,22,41,23],[42,22,42,23],[43,22,43,23],[43,1,43,21],[42,1,42,21],[47,22,47,23],[48,22,48,23],[49,22,49,23],[50,22,50,23],[50,1,50,21],[49,1,49,21],[48,1,48,21],[47,1,47,21],[44,22,44,23],[45,22,45,23],[46,22,46,23],[46,1,46,21],[45,1,45,21],[44,1,44,21],[10,1,10,7],[10,8,10,23],[11,1,11,7],[11,8,11,23],[8,1,8,7],[8,8,8,23],[1,1,1,23],[4,1,4,23],[6,1,6,23],[7,1,7,7],[7,8,7,23],[9,1,9,7],[9,8,9,23]]}
[]
[null,"Club Application Form"]
[]
[]
[null,"Thank you for taking the time to complete the Satellite Clubs Application Form and your support to get 1 million Londoners more active by 2020!"]
[]
[null,"Applicant Details"]
[null,"Lead Contact Name"]
[null,"Name of Club / Organisation"]
[null,"Lead Contact Role"]
[null,"Email"]
[null,"Phone Number "]
[]
[null,"New Project",null,"Club Information"]
[null,null,null,"Club Delivering",null,null,null,null,"Hub Club Type",null,null,null,"Hub Club Postcode",null,null,"Sport",null,null,"Sport Discipline",null,null,"Sport (Other)"]
[null,null,null,"Insert name of club delivering",null,null,null,null,"Select from drop down list",null,null,null,"Insert postcode",null,null,"Select from drop down list",null,null,"Select from drop down list",null,null,"Required if you selected 'Other'"]
[]
[null,null,null,"Satellite Club Information"]
[null,null,null,"School(s)/College(s)",null,null,null,null,null,"Satellite Club venue",null,null,"Venue Borough",null,null,"Venue Postcode",null,null,"Venue Type",null,null,"Age Focus"]
[null,null,null,"Insert venue of sessions",null,null,null,null,null,"Insert venue of sessions",null,null,"Select from drop down list",null,null,"Insert postcode",null,null,"Select from drop down list",null,null,"Select from drop down list"]
[]
[null,null,null,"Number of Weeks",null,null,"Hours per Week",null,null,"Start Date",null,null,"Day",null,null,"Time",null,null,"Club Focus",null,null,"First Year Funded"]
[null,null,null,30,null,null,"Select from drop down list",null,null,"Insert confirmed start date",null,null,"Select from drop down list",null,null,"Insert start and end time",null,null,"Select from drop down list",null,null,"Select from drop down list"]
[]
[null,null,null,"Budget Information"]
[null,null,null,"Coach/Volunteer costs",null,null,"Facility Hire",null,null,"Equipment",null,null,"Other",null,null,"Income",null,null,"Notes"]
[null,null,null,"Cost/hr",{"$f":"D23","v":30},{"$f":"G23","v":"Select from drop down list"},"Cost/hr",{"$f":"D23","v":30},{"$f":"G23","v":"Select from drop down list"},"Please include the cost of purchasing/hiring equipment",null,null,"Please include any other costs, inc asst. coach",null,null,"Please include any income (e.g. NGB funding, participant fees)",null,null,"Please provide an itemised breakdown and description of equipment/other costs"]
[null,null,null,null,"wks","hrs/wk",null,"wks","hrs/wk"]
[null,null,null,{"$f":"SUM(D27*E27*F27)","v":{"$error":"#VALUE!"}},null,null,{"$f":"SUM(G27*H27*I27)","v":{"$error":"#VALUE!"}},null,null,"Insert cost here",null,null,"Insert cost here",null,null,"Insert cost here"]
[]
[null,null,null,"Total Funding Requested",null,null,null,{"$f":"SUMIF(D29:O29,\">0\")-(SUMIF(P29,\">0\"))","v":0},null,null,null,null,null,null,null,null,null,null,"Reporting to",null,null,"Select from drop down list"]
[]
[null,null,null,"SUSTAINABILITY",null,null,"How will you ensure your Satellite Club is sustainable and continues beyond the funding period? Think about;"]
[null,null,null,null,null,null,"How will you generate an income?",null,null,null,null,null,"Examples: Charge participants, create membership packages, sponsorship, fundraising events"]
[null,null,null,null,null,null,"Will you charge participants? How much?",null,null,null,null,null,"Examples: Each participant will be charged £2.50 per session or £25 per term (12 weeks)"]
[null,null,null,null,null,null,"Will training be offered?",null,null,null,null,null,"Examples: access Coaching Bursary to upskill and train coaches, volunteers and participants"]
[null,null,null,null,null,null,"How will you create pathways for participants?",null,null,null,null,null,"Examples: participants sent to hub club, Satellite Club used as club beginner session"]
[null,null,null,null,null,null,"What incentives will you offer for continued participation?",null,null,null,null,null,"Examples: regular verbal praise and feedback, discounted hub club membership"]
[]
[null,"Please tick the boxes and agree that you will;",null,null,null,null,null,null,null,null,null,null,null,null,null,null,null,null,null,null,null,null,"ü"]
[null,"Ensure that the club responsible for satellite club delivery will have appropriate and up to date insurance documentation"]
[null,"Ensure that the club responsible for satellite club delivery will have appropriate and up to date health and safety policy and safeguarding policy"]
[null,"Ensure that the coach(s) leading and overseeing satellite club delivery has appropriate and up to date qualifications and experience"]
[null,"Ensure the delivery of the satellite club is in an appropriate and safe facility at all times"]
[null,"Ensure the satellite club is delivered for a minimum of 2 school terms and weekly sessions take place outside of curriculum hours"]
[null,"Ensure the satellite club is delivered to the target audience of 14-25 year olds, and take the necessary steps to ensure delivery is inclusive"]
[null,"Promote and encourage less sporty and inactive young people to participate in your satellite club"]
[null,"Deliver activities in an informal and social environment to meet the needs of the young people in attendance"]
[null,"Make the necessary plans to ensure that exits routes are provided and the satellite club is sustained long term beyond the funding period"]
[null,"Monitor and report all relevant participation data to the NGB as and when required and agreed"]
[null,"Use all funding grants as they are intended and keep relevant records as evidence"]

{"sheet":"Project 2","index":3,"n_rows":51,"n_cols":23,"rows_kept":51,"cut":false,"hidden":true,"merged":[[50,1,50,21],[50,22,50,23],[47,1,47,21],[47,22,47,23],[48,1,48,21],[48,22,48,23],[49,1,49,21],[49,22,49,23],[44,1,44,21],[44,22,44,23],[45,1,45,21],[45,22,45,23],[46,1,46,21],[46,22,46,23],[41,1,41,21],[41,22,41,23],[42,1,42,21],[42,22,42,23],[43,1,43,21],[43,22,43,23],[37,6,37,11],[37,12,37,23],[39,1,39,21],[39,22,39,23],[40,1,40,21],[40,22,40,23],[32,3,37,5],[32,6,32,23],[33,6,33,11],[33,12,33,23],[34,6,34,11],[34,12,34,23],[35,6,35,11],[35,12,35,23],[36,6,36,11],[36,12,36,23],[13,1,37,2],[13,3,13,23],[28,15,28,17],[29,3,29,23],[30,3,30,6],[30,7,30,9],[30,18,30,20],[30,21,30,23],[26,3,27,3],[26,6,27,6],[26,9,27,11],[26,12,27,14],[26,15,27,17],[26,18,28,23],[28,3,28,5],[28,6,28,8],[28,9,28,11],[28,12,28,14],[24,3,24,23],[25,3,25,5],[25,6,25,8],[25,9,25,11],[25,12,25,14],[25,15,25,17],[25,18,25,23],[21,21,21,23],[22,3,22,5],[22,6,22,8],[22,9,22,11],[22,12,22,14],[22,15,22,17],[22,18,22,20],[22,21,22,23],[21,3,21,5],[21,6,21,8],[21,9,21,11],[21,12,21,14],[21,15,21,17],[21,18,21,20],[19,3,19,8],[19,9,19,11],[19,12,19,14],[19,15,19,17],[19,18,19,20],[19,21,19,23],[15,12,15,14],[15,15,15,17],[15,18,15,20],[15,21,15,23],[17,3,17,23],[18,3,18,8],[18,9,18,11],[18,12,18,14],[18,15,18,17],[18,18,18,20],[15,3,15,7],[15,8,15,11],[9,1,9,7],[9,8,9,23],[10,1,10,7],[10,8,10,23],[11,1,11,7],[11,8,11,23],[18,21,18,23],[1,1,1,23],[4,1,4,23],[6,1,6,23],[7,1,7,7],[7,8,7,23],[8,1,8,7],[8,8,8,23],[14,3,14,7],[14,8,14,11],[14,12,14,14],[14,15,14,17],[14,18,14,20],[14,21,14,23]]}
[]
[null,"Club Application Form"]
[]
[]
[null,"Thank you for taking the time to complete the Satellite Clubs Application Form and your support to get 1 million Londoners more active by 2020!"]
[]
[null,"Applicant Details"]
[null,"Lead Contact Name",null,null,null,null,null,null,{"$f":"'Project 1'!I8:X8","v":0}]
[null,"Name of Club / Organisation",null,null,null,null,null,null,{"$f":"'Project 1'!I9:X9","v":0}]
[null,"Lead Contact Role",null,null,null,null,null,null,{"$f":"'Project 1'!I10:X10","v":0}]
[null,"Email",null,null,null,null,null,null,{"$f":"'Project 1'!I11:X11","v":0}]
[null,"Phone Number ",null,null,null,null,null,null,{"$f":"'Project 1'!I12:X12","v":0}]
[]
[null,"New Project",null,"Club Information"]
[null,null,null,"Club Delivering",null,null,null,null,"Hub Club Type",null,null,null,"Hub Club Postcode",null,null,"Sport",null,null,"Sport Discipline",null,null,"Sport (Other)"]
[null,null,null,"Insert name of club delivering",null,null,null,null,"Select from drop down list",null,null,null,"Insert postcode",null,null,"Select from drop down list",null,null,"Select from drop down list",null,null,"Required if you selected 'Other'"]
[]
[null,null,null,"Satellite Club Information"]
[null,null,null,"School(s)/College(s)",null,null,null,null,null,"Satellite Club venue",null,null,"Venue Borough",null,null,"Venue Postcode",null,null,"Venue Type",null,null,"Age Focus"]
[null,null,null,"Insert venue of sessions",null,null,null,null,null,"Insert venue of sessions",null,null,"Select from drop down list",null,null,"Insert postcode",null,null,"Select from drop down list",null,null,"Select from drop down list"]
[]
[null,null,null,"Number of Weeks",null,null,"Hours per Week",null,null,"Start Date",null,null,"Day",null,null,"Time",null,null,"Club Focus",null,null,"First Year Funded"]
[null,null,null,30,null,null,"Select from drop down list",null,null,"Insert confirmed start date",null,null,"Select from drop down list",null,null,"Insert start and end time",null,null,"Select from drop down list",null,null,"Select from drop down list"]
[]
[null,null,null,"Budget Information"]
[null,null,null,"Coach/Volunteer costs",null,null,"Facility Hire",null,null,"Equipment",null,null,"Other",null,null,"Income",null,null,"Notes"]
[null,null,null,"Cost/hr",{"$f":"D23","v":30},{"$f":"G23","v":"Select from drop down list"},"Cost/hr",{"$f":"D23","v":30},{"$f":"G23","v":"Select from drop down list"},"Please include the cost of purchasing/hiring equipment",null,null,"Please include any other costs, inc asst. coach",null,null,"Please include any income (e.g. NGB funding, participant fees)",null,null,"Please provide an itemised breakdown and description of equipment/other costs"]
[null,null,null,null,"wks","hrs/wk",null,"wks","hrs/wk"]
[null,null,null,{"$f":"SUM(D27*E27*F27)","v":{"$error":"#VALUE!"}},null,null,{"$f":"SUM(G27*H27*I27)","v":{"$error":"#VALUE!"}},null,null,"Insert cost here",null,null,"Insert cost here",null,null,"Insert cost here"]
[]
[null,null,null,"Total Funding Requested",null,null,null,{"$f":"SUMIF(D29:O29,\">0\")-(SUMIF(P29,\">0\"))","v":0},null,null,null,null,null,null,null,null,null,null,"Reporting to",null,null,"Select from drop down list"]
[]
[null,null,null,"SUSTAINABILITY",null,null,"How will you ensure your Satellite Club is sustainable and continues beyond the funding period? Think about;"]
[null,null,null,null,null,null,"How will you generate an income?",null,null,null,null,null,"Examples: Charge participants, create membership packages, sponsorship, fundraising events"]
[null,null,null,null,null,null,"Will you charge participants? How much?",null,null,null,null,null,"Examples: Each participant will be charged £2.50 per session or £25 per term (12 weeks)"]
[null,null,null,null,null,null,"Will training be offered?",null,null,null,null,null,"Examples: access Coaching Bursary to upskill and train coaches, volunteers and participants"]
[null,null,null,null,null,null,"How will you create pathways for participants?",null,null,null,null,null,"Examples: participants sent to hub club, Satellite Club used as club beginner session"]
[null,null,null,null,null,null,"What incentives will you offer for continued participation?",null,null,null,null,null,"Examples: regular verbal praise and feedback, discounted hub club membership"]
[]
[null,"Please tick the boxes and agree that you will;",null,null,null,null,null,null,null,null,null,null,null,null,null,null,null,null,null,null,null,null,"ü"]
[null,"Ensure that the club responsible for satellite club delivery will have appropriate and up to date insurance documentation"]
[null,"Ensure that the club responsible for satellite club delivery will have appropriate and up to date health and safety policy and safeguarding policy"]
[null,"Ensure that the coach(s) leading and overseeing satellite club delivery has appropriate and up to date qualifications and experience"]
[null,"Ensure the delivery of the satellite club is in an appropriate and safe facility at all times"]
[null,"Ensure the satellite club is delivered for a minimum of 2 school terms and weekly sessions take place outside of curriculum hours"]
[null,"Ensure the satellite club is delivered to the target audience of 14-25 year olds, and take the necessary steps to ensure delivery is inclusive"]
[null,"Promote and encourage less sporty and inactive young people to participate in your satellite club"]
[null,"Deliver activities in an informal and social environment to meet the needs of the young people in attendance"]
[null,"Make the necessary plans to ensure that exits routes are provided and the satellite club is sustained long term beyond the funding period"]
[null,"Monitor and report all relevant participation data to the NGB as and when required and agreed"]
[null,"Use all funding grants as they are intended and keep relevant records as evidence"]

{"sheet":"Project 3","index":4,"n_rows":51,"n_cols":23,"rows_kept":51,"cut":false,"hidden":true,"merged":[[50,1,50,21],[50,22,50,23],[47,1,47,21],[47,22,47,23],[48,1,48,21],[48,22,48,23],[49,1,49,21],[49,22,49,23],[44,1,44,21],[44,22,44,23],[45,1,45,21],[45,22,45,23],[46,1,46,21],[46,22,46,23],[41,1,41,21],[41,22,41,23],[42,1,42,21],[42,22,42,23],[43,1,43,21],[43,22,43,23],[37,6,37,11],[37,12,37,23],[39,1,39,21],[39,22,39,23],[40,1,40,21],[40,22,40,23],[32,3,37,5],[32,6,32,23],[33,6,33,11],[33,12,33,23],[34,6,34,11],[34,12,34,23],[35,6,35,11],[35,12,35,23],[36,6,36,11],[36,12,36,23],[13,1,37,2],[13,3,13,23],[28,15,28,17],[29,3,29,23],[30,3,30,6],[30,7,30,9],[30,18,30,20],[30,21,30,23],[26,3,27,3],[26,6,27,6],[26,9,27,11],[26,12,27,14],[26,15,27,17],[26,18,28,23],[28,3,28,5],[28,6,28,8],[28,9,28,11],[28,12,28,14],[24,3,24,23],[25,3,25,5],[25,6,25,8],[25,9,25,11],[25,12,25,14],[25,15,25,17],[25,18,25,23],[21,21,21,23],[22,3,22,5],[22,6,22,8],[22,9,22,11],[22,12,22,14],[22,15,22,17],[22,18,22,20],[22,21,22,23],[21,3,21,5],[21,6,21,8],[21,9,21,11],[21,12,21,14],[21,15,21,17],[21,18,21,20],[19,3,19,8],[19,9,19,11],[19,12,19,14],[19,15,19,17],[19,18,19,20],[19,21,19,23],[15,12,15,14],[15,15,15,17],[15,18,15,20],[15,21,15,23],[17,3,17,23],[18,3,18,8],[18,9,18,11],[18,12,18,14],[18,15,18,17],[18,18,18,20],[15,3,15,7],[15,8,15,11],[9,1,9,7],[9,8,9,23],[10,1,10,7],[10,8,10,23],[11,1,11,7],[11,8,11,23],[18,21,18,23],[1,1,1,23],[4,1,4,23],[6,1,6,23],[7,1,7,7],[7,8,7,23],[8,1,8,7],[8,8,8,23],[14,3,14,7],[14,8,14,11],[14,12,14,14],[14,15,14,17],[14,18,14,20],[14,21,14,23]]}
[]
[null,"Club Application Form"]
[]
[]
[null,"Thank you for taking the time to complete the Satellite Clubs Application Form and your support to get 1 million Londoners more active by 2020!"]
[]
[null,"Applicant Details"]
[null,"Lead Contact Name",null,null,null,null,null,null,{"$f":"'Project 1'!I8:X8","v":0}]
[null,"Name of Club / Organisation",null,null,null,null,null,null,{"$f":"'Project 1'!I9:X9","v":0}]
[null,"Lead Contact Role",null,null,null,null,null,null,{"$f":"'Project 1'!I10:X10","v":0}]
[null,"Email",null,null,null,null,null,null,{"$f":"'Project 1'!I11:X11","v":0}]
[null,"Phone Number ",null,null,null,null,null,null,{"$f":"'Project 1'!I12:X12","v":0}]
[]
[null,"New Project",null,"Club Information"]
[null,null,null,"Club Delivering",null,null,null,null,"Hub Club Type",null,null,null,"Hub Club Postcode",null,null,"Sport",null,null,"Sport Discipline",null,null,"Sport (Other)"]
[null,null,null,"Insert name of club delivering",null,null,null,null,"Select from drop down list",null,null,null,"Insert postcode",null,null,"Select from drop down list",null,null,"Select from drop down list",null,null,"Required if you selected 'Other'"]
[]
[null,null,null,"Satellite Club Information"]
[null,null,null,"School(s)/College(s)",null,null,null,null,null,"Satellite Club venue",null,null,"Venue Borough",null,null,"Venue Postcode",null,null,"Venue Type",null,null,"Age Focus"]
[null,null,null,"Insert venue of sessions",null,null,null,null,null,"Insert venue of sessions",null,null,"Select from drop down list",null,null,"Insert postcode",null,null,"Select from drop down list",null,null,"Select from drop down list"]
[]
[null,null,null,"Number of Weeks",null,null,"Hours per Week",null,null,"Start Date",null,null,"Day",null,null,"Time",null,null,"Club Focus",null,null,"First Year Funded"]
[null,null,null,30,null,null,"Select from drop down list",null,null,"Insert confirmed start date",null,null,"Select from drop down list",null,null,"Insert start and end time",null,null,"Select from drop down list",null,null,"Select from drop down list"]
[]
[null,null,null,"Budget Information"]
[null,null,null,"Coach/Volunteer costs",null,null,"Facility Hire",null,null,"Equipment",null,null,"Other",null,null,"Income",null,null,"Notes"]
[null,null,null,"Cost/hr",{"$f":"D23","v":30},{"$f":"G23","v":"Select from drop down list"},"Cost/hr",{"$f":"D23","v":30},{"$f":"G23","v":"Select from drop down list"},"Please include the cost of purchasing/hiring equipment",null,null,"Please include any other costs, inc asst. coach",null,null,"Please include any income (e.g. NGB funding, participant fees)",null,null,"Please provide an itemised breakdown and description of equipment/other costs"]
[null,null,null,null,"wks","hrs/wk",null,"wks","hrs/wk"]
[null,null,null,{"$f":"SUM(D27*E27*F27)","v":{"$error":"#VALUE!"}},null,null,{"$f":"SUM(G27*H27*I27)","v":{"$error":"#VALUE!"}},null,null,"Insert cost here",null,null,"Insert cost here",null,null,"Insert cost here"]
[]
[null,null,null,"Total Funding Requested",null,null,null,{"$f":"SUMIF(D29:O29,\">0\")-(SUMIF(P29,\">0\"))","v":0},null,null,null,null,null,null,null,null,null,null,"Reporting to",null,null,"Select from drop down list"]
[]
[null,null,null,"SUSTAINABILITY",null,null,"How will you ensure your Satellite Club is sustainable and continues beyond the funding period? Think about;"]
[null,null,null,null,null,null,"How will you generate an income?",null,null,null,null,null,"Examples: Charge participants, create membership packages, sponsorship, fundraising events"]
[null,null,null,null,null,null,"Will you charge participants? How much?",null,null,null,null,null,"Examples: Each participant will be charged £2.50 per session or £25 per term (12 weeks)"]
[null,null,null,null,null,null,"Will training be offered?",null,null,null,null,null,"Examples: access Coaching Bursary to upskill and train coaches, volunteers and participants"]
[null,null,null,null,null,null,"How will you create pathways for participants?",null,null,null,null,null,"Examples: participants sent to hub club, Satellite Club used as club beginner session"]
[null,null,null,null,null,null,"What incentives will you offer for continued participation?",null,null,null,null,null,"Examples: regular verbal praise and feedback, discounted hub club membership"]
[]
[null,"Please tick the boxes and agree that you will;",null,null,null,null,null,null,null,null,null,null,null,null,null,null,null,null,null,null,null,null,"ü"]
[null,"Ensure that the club responsible for satellite club delivery will have appropriate and up to date insurance documentation"]
[null,"Ensure that the club responsible for satellite club delivery will have appropriate and up to date health and safety policy and safeguarding policy"]
[null,"Ensure that the coach(s) leading and overseeing satellite club delivery has appropriate and up to date qualifications and experience"]
[null,"Ensure the delivery of the satellite club is in an appropriate and safe facility at all times"]
[null,"Ensure the satellite club is delivered for a minimum of 2 school terms and weekly sessions take place outside of curriculum hours"]
[null,"Ensure the satellite club is delivered to the target audience of 14-25 year olds, and take the necessary steps to ensure delivery is inclusive"]
[null,"Promote and encourage less sporty and inactive young people to participate in your satellite club"]
[null,"Deliver activities in an informal and social environment to meet the needs of the young people in attendance"]
[null,"Make the necessary plans to ensure that exits routes are provided and the satellite club is sustained long term beyond the funding period"]
[null,"Monitor and report all relevant participation data to the NGB as and when required and agreed"]
[null,"Use all funding grants as they are intended and keep relevant records as evidence"]

{"sheet":"Project 4","index":5,"n_rows":51,"n_cols":23,"rows_kept":51,"cut":false,"hidden":true,"merged":[[50,1,50,21],[50,22,50,23],[47,1,47,21],[47,22,47,23],[48,1,48,21],[48,22,48,23],[49,1,49,21],[49,22,49,23],[44,1,44,21],[44,22,44,23],[45,1,45,21],[45,22,45,23],[46,1,46,21],[46,22,46,23],[41,1,41,21],[41,22,41,23],[42,1,42,21],[42,22,42,23],[43,1,43,21],[43,22,43,23],[37,6,37,11],[37,12,37,23],[39,1,39,21],[39,22,39,23],[40,1,40,21],[40,22,40,23],[32,3,37,5],[32,6,32,23],[33,6,33,11],[33,12,33,23],[34,6,34,11],[34,12,34,23],[35,6,35,11],[35,12,35,23],[36,6,36,11],[36,12,36,23],[13,1,37,2],[13,3,13,23],[28,15,28,17],[29,3,29,23],[30,3,30,6],[30,7,30,9],[30,18,30,20],[30,21,30,23],[26,3,27,3],[26,6,27,6],[26,9,27,11],[26,12,27,14],[26,15,27,17],[26,18,28,23],[28,3,28,5],[28,6,28,8],[28,9,28,11],[28,12,28,14],[24,3,24,23],[25,3,25,5],[25,6,25,8],[25,9,25,11],[25,12,25,14],[25,15,25,17],[25,18,25,23],[21,21,21,23],[22,3,22,5],[22,6,22,8],[22,9,22,11],[22,12,22,14],[22,15,22,17],[22,18,22,20],[22,21,22,23],[21,3,21,5],[21,6,21,8],[21,9,21,11],[21,12,21,14],[21,15,21,17],[21,18,21,20],[19,3,19,8],[19,9,19,11],[19,12,19,14],[19,15,19,17],[19,18,19,20],[19,21,19,23],[15,12,15,14],[15,15,15,17],[15,18,15,20],[15,21,15,23],[17,3,17,23],[18,3,18,8],[18,9,18,11],[18,12,18,14],[18,15,18,17],[18,18,18,20],[15,3,15,7],[15,8,15,11],[9,1,9,7],[9,8,9,23],[10,1,10,7],[10,8,10,23],[11,1,11,7],[11,8,11,23],[18,21,18,23],[1,1,1,23],[4,1,4,23],[6,1,6,23],[7,1,7,7],[7,8,7,23],[8,1,8,7],[8,8,8,23],[14,3,14,7],[14,8,14,11],[14,12,14,14],[14,15,14,17],[14,18,14,20],[14,21,14,23]]}
[]
[null,"Club Application Form"]
[]
[]
[null,"Thank you for taking the time to complete the Satellite Clubs Application Form and your support to get 1 million Londoners more active by 2020!"]
[]
[null,"Applicant Details"]
[null,"Lead Contact Name",null,null,null,null,null,null,{"$f":"'Project 1'!I8:X8","v":0}]
[null,"Name of Club / Organisation",null,null,null,null,null,null,{"$f":"'Project 1'!I9:X9","v":0}]
[null,"Lead Contact Role",null,null,null,null,null,null,{"$f":"'Project 1'!I10:X10","v":0}]
[null,"Email",null,null,null,null,null,null,{"$f":"'Project 1'!I11:X11","v":0}]
[null,"Phone Number ",null,null,null,null,null,null,{"$f":"'Project 1'!I12:X12","v":0}]
[]
[null,"New Project",null,"Club Information"]
[null,null,null,"Club Delivering",null,null,null,null,"Hub Club Type",null,null,null,"Hub Club Postcode",null,null,"Sport",null,null,"Sport Discipline",null,null,"Sport (Other)"]
[null,null,null,"Insert name of club delivering",null,null,null,null,"Select from drop down list",null,null,null,"Insert postcode",null,null,"Select from drop down list",null,null,"Select from drop down list",null,null,"Required if you selected 'Other'"]
[]
[null,null,null,"Satellite Club Information"]
[null,null,null,"School(s)/College(s)",null,null,null,null,null,"Satellite Club venue",null,null,"Venue Borough",null,null,"Venue Postcode",null,null,"Venue Type",null,null,"Age Focus"]
[null,null,null,"Insert venue of sessions",null,null,null,null,null,"Insert venue of sessions",null,null,"Select from drop down list",null,null,"Insert postcode",null,null,"Select from drop down list",null,null,"Select from drop down list"]
[]
[null,null,null,"Number of Weeks",null,null,"Hours per Week",null,null,"Start Date",null,null,"Day",null,null,"Time",null,null,"Club Focus",null,null,"First Year Funded"]
[null,null,null,30,null,null,"Select from drop down list",null,null,"Insert confirmed start date",null,null,"Select from drop down list",null,null,"Insert start and end time",null,null,"Select from drop down list",null,null,"Select from drop down list"]
[]
[null,null,null,"Budget Information"]
[null,null,null,"Coach/Volunteer costs",null,null,"Facility Hire",null,null,"Equipment",null,null,"Other",null,null,"Income",null,null,"Notes"]
[null,null,null,"Cost/hr",{"$f":"D23","v":30},{"$f":"G23","v":"Select from drop down list"},"Cost/hr",{"$f":"D23","v":30},{"$f":"G23","v":"Select from drop down list"},"Please include the cost of purchasing/hiring equipment",null,null,"Please include any other costs, inc asst. coach",null,null,"Please include any income (e.g. NGB funding, participant fees)",null,null,"Please provide an itemised breakdown and description of equipment/other costs"]
[null,null,null,null,"wks","hrs/wk",null,"wks","hrs/wk"]
[null,null,null,{"$f":"SUM(D27*E27*F27)","v":{"$error":"#VALUE!"}},null,null,{"$f":"SUM(G27*H27*I27)","v":{"$error":"#VALUE!"}},null,null,"Insert cost here",null,null,"Insert cost here",null,null,"Insert cost here"]
[]
[null,null,null,"Total Funding Requested",null,null,null,{"$f":"SUMIF(D29:O29,\">0\")-(SUMIF(P29,\">0\"))","v":0},null,null,null,null,null,null,null,null,null,null,"Reporting to",null,null,"Select from drop down list"]
[]
[null,null,null,"SUSTAINABILITY",null,null,"How will you ensure your Satellite Club is sustainable and continues beyond the funding period? Think about;"]
[null,null,null,null,null,null,"How will you generate an income?",null,null,null,null,null,"Examples: Charge participants, create membership packages, sponsorship, fundraising events"]
[null,null,null,null,null,null,"Will you charge participants? How much?",null,null,null,null,null,"Examples: Each participant will be charged £2.50 per session or £25 per term (12 weeks)"]
[null,null,null,null,null,null,"Will training be offered?",null,null,null,null,null,"Examples: access Coaching Bursary to upskill and train coaches, volunteers and participants"]
[null,null,null,null,null,null,"How will you create pathways for participants?",null,null,null,null,null,"Examples: participants sent to hub club, Satellite Club used as club beginner session"]
[null,null,null,null,null,null,"What incentives will you offer for continued participation?",null,null,null,null,null,"Examples: regular verbal praise and feedback, discounted hub club membership"]
[]
[null,"Please tick the boxes and agree that you will;",null,null,null,null,null,null,null,null,null,null,null,null,null,null,null,null,null,null,null,null,"ü"]
[null,"Ensure that the club responsible for satellite club delivery will have appropriate and up to date insurance documentation"]
[null,"Ensure that the club responsible for satellite club delivery will have appropriate and up to date health and safety policy and safeguarding policy"]
[null,"Ensure that the coach(s) leading and overseeing satellite club delivery has appropriate and up to date qualifications and experience"]
[null,"Ensure the delivery of the satellite club is in an appropriate and safe facility at all times"]
[null,"Ensure the satellite club is delivered for a minimum of 2 school terms and weekly sessions take place outside of curriculum hours"]
[null,"Ensure the satellite club is delivered to the target audience of 14-25 year olds, and take the necessary steps to ensure delivery is inclusive"]
[null,"Promote and encourage less sporty and inactive young people to participate in your satellite club"]
[null,"Deliver activities in an informal and social environment to meet the needs of the young people in attendance"]
[null,"Make the necessary plans to ensure that exits routes are provided and the satellite club is sustained long term beyond the funding period"]
[null,"Monitor and report all relevant participation data to the NGB as and when required and agreed"]
[null,"Use all funding grants as they are intended and keep relevant records as evidence"]

{"sheet":"Project 5","index":6,"n_rows":51,"n_cols":23,"rows_kept":51,"cut":false,"hidden":true,"merged":[[50,1,50,21],[50,22,50,23],[47,1,47,21],[47,22,47,23],[48,1,48,21],[48,22,48,23],[49,1,49,21],[49,22,49,23],[44,1,44,21],[44,22,44,23],[45,1,45,21],[45,22,45,23],[46,1,46,21],[46,22,46,23],[41,1,41,21],[41,22,41,23],[42,1,42,21],[42,22,42,23],[43,1,43,21],[43,22,43,23],[37,6,37,11],[37,12,37,23],[39,1,39,21],[39,22,39,23],[40,1,40,21],[40,22,40,23],[32,3,37,5],[32,6,32,23],[33,6,33,11],[33,12,33,23],[34,6,34,11],[34,12,34,23],[35,6,35,11],[35,12,35,23],[36,6,36,11],[36,12,36,23],[13,1,37,2],[13,3,13,23],[28,15,28,17],[29,3,29,23],[30,3,30,6],[30,7,30,9],[30,18,30,20],[30,21,30,23],[26,3,27,3],[26,6,27,6],[26,9,27,11],[26,12,27,14],[26,15,27,17],[26,18,28,23],[28,3,28,5],[28,6,28,8],[28,9,28,11],[28,12,28,14],[24,3,24,23],[25,3,25,5],[25,6,25,8],[25,9,25,11],[25,12,25,14],[25,15,25,17],[25,18,25,23],[21,21,21,23],[22,3,22,5],[22,6,22,8],[22,9,22,11],[22,12,22,14],[22,15,22,17],[22,18,22,20],[22,21,22,23],[21,3,21,5],[21,6,21,8],[21,9,21,11],[21,12,21,14],[21,15,21,17],[21,18,21,20],[19,3,19,8],[19,9,19,11],[19,12,19,14],[19,15,19,17],[19,18,19,20],[19,21,19,23],[15,12,15,14],[15,15,15,17],[15,18,15,20],[15,21,15,23],[17,3,17,23],[18,3,18,8],[18,9,18,11],[18,12,18,14],[18,15,18,17],[18,18,18,20],[15,3,15,7],[15,8,15,11],[9,1,9,7],[9,8,9,23],[10,1,10,7],[10,8,10,23],[11,1,11,7],[11,8,11,23],[18,21,18,23],[1,1,1,23],[4,1,4,23],[6,1,6,23],[7,1,7,7],[7,8,7,23],[8,1,8,7],[8,8,8,23],[14,3,14,7],[14,8,14,11],[14,12,14,14],[14,15,14,17],[14,18,14,20],[14,21,14,23]]}
[]
[null,"Club Application Form"]
[]
[]
[null,"Thank you for taking the time to complete the Satellite Clubs Application Form and your support to get 1 million Londoners more active by 2020!"]
[]
[null,"Applicant Details"]
[null,"Lead Contact Name",null,null,null,null,null,null,{"$f":"'Project 1'!I8:X8","v":0}]
[null,"Name of Club / Organisation",null,null,null,null,null,null,{"$f":"'Project 1'!I9:X9","v":0}]
[null,"Lead Contact Role",null,null,null,null,null,null,{"$f":"'Project 1'!I10:X10","v":0}]
[null,"Email",null,null,null,null,null,null,{"$f":"'Project 1'!I11:X11","v":0}]
[null,"Phone Number ",null,null,null,null,null,null,{"$f":"'Project 1'!I12:X12","v":0}]
[]
[null,"New Project",null,"Club Information"]
[null,null,null,"Club Delivering",null,null,null,null,"Hub Club Type",null,null,null,"Hub Club Postcode",null,null,"Sport",null,null,"Sport Discipline",null,null,"Sport (Other)"]
[null,null,null,"Insert name of club delivering",null,null,null,null,"Select from drop down list",null,null,null,"Insert postcode",null,null,"Select from drop down list",null,null,"Select from drop down list",null,null,"Required if you selected 'Other'"]
[]
[null,null,null,"Satellite Club Information"]
[null,null,null,"School(s)/College(s)",null,null,null,null,null,"Satellite Club venue",null,null,"Venue Borough",null,null,"Venue Postcode",null,null,"Venue Type",null,null,"Age Focus"]
[null,null,null,"Insert venue of sessions",null,null,null,null,null,"Insert venue of sessions",null,null,"Select from drop down list",null,null,"Insert postcode",null,null,"Select from drop down list",null,null,"Select from drop down list"]
[]
[null,null,null,"Number of Weeks",null,null,"Hours per Week",null,null,"Start Date",null,null,"Day",null,null,"Time",null,null,"Club Focus",null,null,"First Year Funded"]
[null,null,null,30,null,null,"Select from drop down list",null,null,"Insert confirmed start date",null,null,"Select from drop down list",null,null,"Insert start and end time",null,null,"Select from drop down list",null,null,"Select from drop down list"]
[]
[null,null,null,"Budget Information"]
[null,null,null,"Coach/Volunteer costs",null,null,"Facility Hire",null,null,"Equipment",null,null,"Other",null,null,"Income",null,null,"Notes"]
[null,null,null,"Cost/hr",{"$f":"D23","v":30},{"$f":"G23","v":"Select from drop down list"},"Cost/hr",{"$f":"D23","v":30},{"$f":"G23","v":"Select from drop down list"},"Please include the cost of purchasing/hiring equipment",null,null,"Please include any other costs, inc asst. coach",null,null,"Please include any income (e.g. NGB funding, participant fees)",null,null,"Please provide an itemised breakdown and description of equipment/other costs"]
[null,null,null,null,"wks","hrs/wk",null,"wks","hrs/wk"]
[null,null,null,{"$f":"SUM(D27*E27*F27)","v":{"$error":"#VALUE!"}},null,null,{"$f":"SUM(G27*H27*I27)","v":{"$error":"#VALUE!"}},null,null,"Insert cost here",null,null,"Insert cost here",null,null,"Insert cost here"]
[]
[null,null,null,"Total Funding Requested",null,null,null,{"$f":"SUMIF(D29:O29,\">0\")-(SUMIF(P29,\">0\"))","v":0},null,null,null,null,null,null,null,null,null,null,"Reporting to",null,null,"Select from drop down list"]
[]
[null,null,null,"SUSTAINABILITY",null,null,"How will you ensure your Satellite Club is sustainable and continues beyond the funding period? Think about;"]
[null,null,null,null,null,null,"How will you generate an income?",null,null,null,null,null,"Examples: Charge participants, create membership packages, sponsorship, fundraising events"]
[null,null,null,null,null,null,"Will you charge participants? How much?",null,null,null,null,null,"Examples: Each participant will be charged £2.50 per session or £25 per term (12 weeks)"]
[null,null,null,null,null,null,"Will training be offered?",null,null,null,null,null,"Examples: access Coaching Bursary to upskill and train coaches, volunteers and participants"]
[null,null,null,null,null,null,"How will you create pathways for participants?",null,null,null,null,null,"Examples: participants sent to hub club, Satellite Club used as club beginner session"]
[null,null,null,null,null,null,"What incentives will you offer for continued participation?",null,null,null,null,null,"Examples: regular verbal praise and feedback, discounted hub club membership"]
[]
[null,"Please tick the boxes and agree that you will;",null,null,null,null,null,null,null,null,null,null,null,null,null,null,null,null,null,null,null,null,"ü"]
[null,"Ensure that the club responsible for satellite club delivery will have appropriate and up to date insurance documentation"]
[null,"Ensure that the club responsible for satellite club delivery will have appropriate and up to date health and safety policy and safeguarding policy"]
[null,"Ensure that the coach(s) leading and overseeing satellite club delivery has appropriate and up to date qualifications and experience"]
[null,"Ensure the delivery of the satellite club is in an appropriate and safe facility at all times"]
[null,"Ensure the satellite club is delivered for a minimum of 2 school terms and weekly sessions take place outside of curriculum hours"]
[null,"Ensure the satellite club is delivered to the target audience of 14-25 year olds, and take the necessary steps to ensure delivery is inclusive"]
[null,"Promote and encourage less sporty and inactive young people to participate in your satellite club"]
[null,"Deliver activities in an informal and social environment to meet the needs of the young people in attendance"]
[null,"Make the necessary plans to ensure that exits routes are provided and the satellite club is sustained long term beyond the funding period"]
[null,"Monitor and report all relevant participation data to the NGB as and when required and agreed"]
[null,"Use all funding grants as they are intended and keep relevant records as evidence"]

{"sheet":"Project 6","index":7,"n_rows":51,"n_cols":23,"rows_kept":51,"cut":false,"hidden":true,"merged":[[50,1,50,21],[50,22,50,23],[47,1,47,21],[47,22,47,23],[48,1,48,21],[48,22,48,23],[49,1,49,21],[49,22,49,23],[44,1,44,21],[44,22,44,23],[45,1,45,21],[45,22,45,23],[46,1,46,21],[46,22,46,23],[41,1,41,21],[41,22,41,23],[42,1,42,21],[42,22,42,23],[43,1,43,21],[43,22,43,23],[37,6,37,11],[37,12,37,23],[39,1,39,21],[39,22,39,23],[40,1,40,21],[40,22,40,23],[32,3,37,5],[32,6,32,23],[33,6,33,11],[33,12,33,23],[34,6,34,11],[34,12,34,23],[35,6,35,11],[35,12,35,23],[36,6,36,11],[36,12,36,23],[13,1,37,2],[13,3,13,23],[28,15,28,17],[29,3,29,23],[30,3,30,6],[30,7,30,9],[30,18,30,20],[30,21,30,23],[26,3,27,3],[26,6,27,6],[26,9,27,11],[26,12,27,14],[26,15,27,17],[26,18,28,23],[28,3,28,5],[28,6,28,8],[28,9,28,11],[28,12,28,14],[24,3,24,23],[25,3,25,5],[25,6,25,8],[25,9,25,11],[25,12,25,14],[25,15,25,17],[25,18,25,23],[21,21,21,23],[22,3,22,5],[22,6,22,8],[22,9,22,11],[22,12,22,14],[22,15,22,17],[22,18,22,20],[22,21,22,23],[21,3,21,5],[21,6,21,8],[21,9,21,11],[21,12,21,14],[21,15,21,17],[21,18,21,20],[19,3,19,8],[19,9,19,11],[19,12,19,14],[19,15,19,17],[19,18,19,20],[19,21,19,23],[15,12,15,14],[15,15,15,17],[15,18,15,20],[15,21,15,23],[17,3,17,23],[18,3,18,8],[18,9,18,11],[18,12,18,14],[18,15,18,17],[18,18,18,20],[15,3,15,7],[15,8,15,11],[9,1,9,7],[9,8,9,23],[10,1,10,7],[10,8,10,23],[11,1,11,7],[11,8,11,23],[18,21,18,23],[1,1,1,23],[4,1,4,23],[6,1,6,23],[7,1,7,7],[7,8,7,23],[8,1,8,7],[8,8,8,23],[14,3,14,7],[14,8,14,11],[14,12,14,14],[14,15,14,17],[14,18,14,20],[14,21,14,23]]}
[]
[null,"Club Application Form"]
[]
[]
[null,"Thank you for taking the time to complete the Satellite Clubs Application Form and your support to get 1 million Londoners more active by 2020!"]
[]
[null,"Applicant Details"]
[null,"Lead Contact Name",null,null,null,null,null,null,{"$f":"'Project 1'!I8:X8","v":0}]
[null,"Name of Club / Organisation",null,null,null,null,null,null,{"$f":"'Project 1'!I9:X9","v":0}]
[null,"Lead Contact Role",null,null,null,null,null,null,{"$f":"'Project 1'!I10:X10","v":0}]
[null,"Email",null,null,null,null,null,null,{"$f":"'Project 1'!I11:X11","v":0}]
[null,"Phone Number ",null,null,null,null,null,null,{"$f":"'Project 1'!I12:X12","v":0}]
[]
[null,"New Project",null,"Club Information"]
[null,null,null,"Club Delivering",null,null,null,null,"Hub Club Type",null,null,null,"Hub Club Postcode",null,null,"Sport",null,null,"Sport Discipline",null,null,"Sport (Other)"]
[null,null,null,"Insert name of club delivering",null,null,null,null,"Select from drop down list",null,null,null,"Insert postcode",null,null,"Select from drop down list",null,null,"Select from drop down list",null,null,"Required if you selected 'Other'"]
[]
[null,null,null,"Satellite Club Information"]
[null,null,null,"School(s)/College(s)",null,null,null,null,null,"Satellite Club venue",null,null,"Venue Borough",null,null,"Venue Postcode",null,null,"Venue Type",null,null,"Age Focus"]
[null,null,null,"Insert venue of sessions",null,null,null,null,null,"Insert venue of sessions",null,null,"Select from drop down list",null,null,"Insert postcode",null,null,"Select from drop down list",null,null,"Select from drop down list"]
[]
[null,null,null,"Number of Weeks",null,null,"Hours per Week",null,null,"Start Date",null,null,"Day",null,null,"Time",null,null,"Club Focus",null,null,"First Year Funded"]
[null,null,null,30,null,null,"Select from drop down list",null,null,"Insert confirmed start date",null,null,"Select from drop down list",null,null,"Insert start and end time",null,null,"Select from drop down list",null,null,"Select from drop down list"]
[]
[null,null,null,"Budget Information"]
[null,null,null,"Coach/Volunteer costs",null,null,"Facility Hire",null,null,"Equipment",null,null,"Other",null,null,"Income",null,null,"Notes"]
[null,null,null,"Cost/hr",{"$f":"D23","v":30},{"$f":"G23","v":"Select from drop down list"},"Cost/hr",{"$f":"D23","v":30},{"$f":"G23","v":"Select from drop down list"},"Please include the cost of purchasing/hiring equipment",null,null,"Please include any other costs, inc asst. coach",null,null,"Please include any income (e.g. NGB funding, participant fees)",null,null,"Please provide an itemised breakdown and description of equipment/other costs"]
[null,null,null,null,"wks","hrs/wk",null,"wks","hrs/wk"]
[null,null,null,{"$f":"SUM(D27*E27*F27)","v":{"$error":"#VALUE!"}},null,null,{"$f":"SUM(G27*H27*I27)","v":{"$error":"#VALUE!"}},null,null,"Insert cost here",null,null,"Insert cost here",null,null,"Insert cost here"]
[]
[null,null,null,"Total Funding Requested",null,null,null,{"$f":"SUMIF(D29:O29,\">0\")-(SUMIF(P29,\">0\"))","v":0},null,null,null,null,null,null,null,null,null,null,"Reporting to",null,null,"Select from drop down list"]
[]
[null,null,null,"SUSTAINABILITY",null,null,"How will you ensure your Satellite Club is sustainable and continues beyond the funding period? Think about;"]
[null,null,null,null,null,null,"How will you generate an income?",null,null,null,null,null,"Examples: Charge participants, create membership packages, sponsorship, fundraising events"]
[null,null,null,null,null,null,"Will you charge participants? How much?",null,null,null,null,null,"Examples: Each participant will be charged £2.50 per session or £25 per term (12 weeks)"]
[null,null,null,null,null,null,"Will training be offered?",null,null,null,null,null,"Examples: access Coaching Bursary to upskill and train coaches, volunteers and participants"]
[null,null,null,null,null,null,"How will you create pathways for participants?",null,null,null,null,null,"Examples: participants sent to hub club, Satellite Club used as club beginner session"]
[null,null,null,null,null,null,"What incentives will you offer for continued participation?",null,null,null,null,null,"Examples: regular verbal praise and feedback, discounted hub club membership"]
[]
[null,"Please tick the boxes and agree that you will;",null,null,null,null,null,null,null,null,null,null,null,null,null,null,null,null,null,null,null,null,"ü"]
[null,"Ensure that the club responsible for satellite club delivery will have appropriate and up to date insurance documentation"]
[null,"Ensure that the club responsible for satellite club delivery will have appropriate and up to date health and safety policy and safeguarding policy"]
[null,"Ensure that the coach(s) leading and overseeing satellite club delivery has appropriate and up to date qualifications and experience"]
[null,"Ensure the delivery of the satellite club is in an appropriate and safe facility at all times"]
[null,"Ensure the satellite club is delivered for a minimum of 2 school terms and weekly sessions take place outside of curriculum hours"]
[null,"Ensure the satellite club is delivered to the target audience of 14-25 year olds, and take the necessary steps to ensure delivery is inclusive"]
[null,"Promote and encourage less sporty and inactive young people to participate in your satellite club"]
[null,"Deliver activities in an informal and social environment to meet the needs of the young people in attendance"]
[null,"Make the necessary plans to ensure that exits routes are provided and the satellite club is sustained long term beyond the funding period"]
[null,"Monitor and report all relevant participation data to the NGB as and when required and agreed"]
[null,"Use all funding grants as they are intended and keep relevant records as evidence"]

{"sheet":"Project 7","index":8,"n_rows":51,"n_cols":23,"rows_kept":51,"cut":false,"hidden":true,"merged":[[50,1,50,21],[50,22,50,23],[47,1,47,21],[47,22,47,23],[48,1,48,21],[48,22,48,23],[49,1,49,21],[49,22,49,23],[44,1,44,21],[44,22,44,23],[45,1,45,21],[45,22,45,23],[46,1,46,21],[46,22,46,23],[41,1,41,21],[41,22,41,23],[42,1,42,21],[42,22,42,23],[43,1,43,21],[43,22,43,23],[37,6,37,11],[37,12,37,23],[39,1,39,21],[39,22,39,23],[40,1,40,21],[40,22,40,23],[32,3,37,5],[32,6,32,23],[33,6,33,11],[33,12,33,23],[34,6,34,11],[34,12,34,23],[35,6,35,11],[35,12,35,23],[36,6,36,11],[36,12,36,23],[13,1,37,2],[13,3,13,23],[28,15,28,17],[29,3,29,23],[30,3,30,6],[30,7,30,9],[30,18,30,20],[30,21,30,23],[26,3,27,3],[26,6,27,6],[26,9,27,11],[26,12,27,14],[26,15,27,17],[26,18,28,23],[28,3,28,5],[28,6,28,8],[28,9,28,11],[28,12,28,14],[24,3,24,23],[25,3,25,5],[25,6,25,8],[25,9,25,11],[25,12,25,14],[25,15,25,17],[25,18,25,23],[21,21,21,23],[22,3,22,5],[22,6,22,8],[22,9,22,11],[22,12,22,14],[22,15,22,17],[22,18,22,20],[22,21,22,23],[21,3,21,5],[21,6,21,8],[21,9,21,11],[21,12,21,14],[21,15,21,17],[21,18,21,20],[19,3,19,8],[19,9,19,11],[19,12,19,14],[19,15,19,17],[19,18,19,20],[19,21,19,23],[15,12,15,14],[15,15,15,17],[15,18,15,20],[15,21,15,23],[17,3,17,23],[18,3,18,8],[18,9,18,11],[18,12,18,14],[18,15,18,17],[18,18,18,20],[15,3,15,7],[15,8,15,11],[9,1,9,7],[9,8,9,23],[10,1,10,7],[10,8,10,23],[11,1,11,7],[11,8,11,23],[18,21,18,23],[1,1,1,23],[4,1,4,23],[6,1,6,23],[7,1,7,7],[7,8,7,23],[8,1,8,7],[8,8,8,23],[14,3,14,7],[14,8,14,11],[14,12,14,14],[14,15,14,17],[14,18,14,20],[14,21,14,23]]}
[]
[null,"Club Application Form"]
[]
[]
[null,"Thank you for taking the time to complete the Satellite Clubs Application Form and your support to get 1 million Londoners more active by 2020!"]
[]
[null,"Applicant Details"]
[null,"Lead Contact Name",null,null,null,null,null,null,{"$f":"'Project 1'!I8:X8","v":0}]
[null,"Name of Club / Organisation",null,null,null,null,null,null,{"$f":"'Project 1'!I9:X9","v":0}]
[null,"Lead Contact Role",null,null,null,null,null,null,{"$f":"'Project 1'!I10:X10","v":0}]
[null,"Email",null,null,null,null,null,null,{"$f":"'Project 1'!I11:X11","v":0}]
[null,"Phone Number ",null,null,null,null,null,null,{"$f":"'Project 1'!I12:X12","v":0}]
[]
[null,"New Project",null,"Club Information"]
[null,null,null,"Club Delivering",null,null,null,null,"Hub Club Type",null,null,null,"Hub Club Postcode",null,null,"Sport",null,null,"Sport Discipline",null,null,"Sport (Other)"]
[null,null,null,"Insert name of club delivering",null,null,null,null,"Select from drop down list",null,null,null,"Insert postcode",null,null,"Select from drop down list",null,null,"Select from drop down list",null,null,"Required if you selected 'Other'"]
[]
[null,null,null,"Satellite Club Information"]
[null,null,null,"School(s)/College(s)",null,null,null,null,null,"Satellite Club venue",null,null,"Venue Borough",null,null,"Venue Postcode",null,null,"Venue Type",null,null,"Age Focus"]
[null,null,null,"Insert venue of sessions",null,null,null,null,null,"Insert venue of sessions",null,null,"Select from drop down list",null,null,"Insert postcode",null,null,"Select from drop down list",null,null,"Select from drop down list"]
[]
[null,null,null,"Number of Weeks",null,null,"Hours per Week",null,null,"Start Date",null,null,"Day",null,null,"Time",null,null,"Club Focus",null,null,"First Year Funded"]
[null,null,null,30,null,null,"Select from drop down list",null,null,"Insert confirmed start date",null,null,"Select from drop down list",null,null,"Insert start and end time",null,null,"Select from drop down list",null,null,"Select from drop down list"]
[]
[null,null,null,"Budget Information"]
[null,null,null,"Coach/Volunteer costs",null,null,"Facility Hire",null,null,"Equipment",null,null,"Other",null,null,"Income",null,null,"Notes"]
[null,null,null,"Cost/hr",{"$f":"D23","v":30},{"$f":"G23","v":"Select from drop down list"},"Cost/hr",{"$f":"D23","v":30},{"$f":"G23","v":"Select from drop down list"},"Please include the cost of purchasing/hiring equipment",null,null,"Please include any other costs, inc asst. coach",null,null,"Please include any income (e.g. NGB funding, participant fees)",null,null,"Please provide an itemised breakdown and description of equipment/other costs"]
[null,null,null,null,"wks","hrs/wk",null,"wks","hrs/wk"]
[null,null,null,{"$f":"SUM(D27*E27*F27)","v":{"$error":"#VALUE!"}},null,null,{"$f":"SUM(G27*H27*I27)","v":{"$error":"#VALUE!"}},null,null,"Insert cost here",null,null,"Insert cost here",null,null,"Insert cost here"]
[]
[null,null,null,"Total Funding Requested",null,null,null,{"$f":"SUMIF(D29:O29,\">0\")-(SUMIF(P29,\">0\"))","v":0},null,null,null,null,null,null,null,null,null,null,"Reporting to",null,null,"Select from drop down list"]
[]
[null,null,null,"SUSTAINABILITY",null,null,"How will you ensure your Satellite Club is sustainable and continues beyond the funding period? Think about;"]
[null,null,null,null,null,null,"How will you generate an income?",null,null,null,null,null,"Examples: Charge participants, create membership packages, sponsorship, fundraising events"]
[null,null,null,null,null,null,"Will you charge participants? How much?",null,null,null,null,null,"Examples: Each participant will be charged £2.50 per session or £25 per term (12 weeks)"]
[null,null,null,null,null,null,"Will training be offered?",null,null,null,null,null,"Examples: access Coaching Bursary to upskill and train coaches, volunteers and participants"]
[null,null,null,null,null,null,"How will you create pathways for participants?",null,null,null,null,null,"Examples: participants sent to hub club, Satellite Club used as club beginner session"]
[null,null,null,null,null,null,"What incentives will you offer for continued participation?",null,null,null,null,null,"Examples: regular verbal praise and feedback, discounted hub club membership"]
[]
[null,"Please tick the boxes and agree that you will;",null,null,null,null,null,null,null,null,null,null,null,null,null,null,null,null,null,null,null,null,"ü"]
[null,"Ensure that the club responsible for satellite club delivery will have appropriate and up to date insurance documentation"]
[null,"Ensure that the club responsible for satellite club delivery will have appropriate and up to date health and safety policy and safeguarding policy"]
[null,"Ensure that the coach(s) leading and overseeing satellite club delivery has appropriate and up to date qualifications and experience"]
[null,"Ensure the delivery of the satellite club is in an appropriate and safe facility at all times"]
[null,"Ensure the satellite club is delivered for a minimum of 2 school terms and weekly sessions take place outside of curriculum hours"]
[null,"Ensure the satellite club is delivered to the target audience of 14-25 year olds, and take the necessary steps to ensure delivery is inclusive"]
[null,"Promote and encourage less sporty and inactive young people to participate in your satellite club"]
[null,"Deliver activities in an informal and social environment to meet the needs of the young people in attendance"]
[null,"Make the necessary plans to ensure that exits routes are provided and the satellite club is sustained long term beyond the funding period"]
[null,"Monitor and report all relevant participation data to the NGB as and when required and agreed"]
[null,"Use all funding grants as they are intended and keep relevant records as evidence"]

{"sheet":"Project 8","index":9,"n_rows":51,"n_cols":23,"rows_kept":51,"cut":false,"hidden":true,"merged":[[50,1,50,21],[50,22,50,23],[47,1,47,21],[47,22,47,23],[48,1,48,21],[48,22,48,23],[49,1,49,21],[49,22,49,23],[44,1,44,21],[44,22,44,23],[45,1,45,21],[45,22,45,23],[46,1,46,21],[46,22,46,23],[41,1,41,21],[41,22,41,23],[42,1,42,21],[42,22,42,23],[43,1,43,21],[43,22,43,23],[37,6,37,11],[37,12,37,23],[39,1,39,21],[39,22,39,23],[40,1,40,21],[40,22,40,23],[32,3,37,5],[32,6,32,23],[33,6,33,11],[33,12,33,23],[34,6,34,11],[34,12,34,23],[35,6,35,11],[35,12,35,23],[36,6,36,11],[36,12,36,23],[13,1,37,2],[13,3,13,23],[28,15,28,17],[29,3,29,23],[30,3,30,6],[30,7,30,9],[30,18,30,20],[30,21,30,23],[26,3,27,3],[26,6,27,6],[26,9,27,11],[26,12,27,14],[26,15,27,17],[26,18,28,23],[28,3,28,5],[28,6,28,8],[28,9,28,11],[28,12,28,14],[24,3,24,23],[25,3,25,5],[25,6,25,8],[25,9,25,11],[25,12,25,14],[25,15,25,17],[25,18,25,23],[21,21,21,23],[22,3,22,5],[22,6,22,8],[22,9,22,11],[22,12,22,14],[22,15,22,17],[22,18,22,20],[22,21,22,23],[21,3,21,5],[21,6,21,8],[21,9,21,11],[21,12,21,14],[21,15,21,17],[21,18,21,20],[19,3,19,8],[19,9,19,11],[19,12,19,14],[19,15,19,17],[19,18,19,20],[19,21,19,23],[15,12,15,14],[15,15,15,17],[15,18,15,20],[15,21,15,23],[17,3,17,23],[18,3,18,8],[18,9,18,11],[18,12,18,14],[18,15,18,17],[18,18,18,20],[15,3,15,7],[15,8,15,11],[9,1,9,7],[9,8,9,23],[10,1,10,7],[10,8,10,23],[11,1,11,7],[11,8,11,23],[18,21,18,23],[1,1,1,23],[4,1,4,23],[6,1,6,23],[7,1,7,7],[7,8,7,23],[8,1,8,7],[8,8,8,23],[14,3,14,7],[14,8,14,11],[14,12,14,14],[14,15,14,17],[14,18,14,20],[14,21,14,23]]}
[]
[null,"Club Application Form"]
[]
[]
[null,"Thank you for taking the time to complete the Satellite Clubs Application Form and your support to get 1 million Londoners more active by 2020!"]
[]
[null,"Applicant Details"]
[null,"Lead Contact Name",null,null,null,null,null,null,{"$f":"'Project 1'!I8:X8","v":0}]
[null,"Name of Club / Organisation",null,null,null,null,null,null,{"$f":"'Project 1'!I9:X9","v":0}]
[null,"Lead Contact Role",null,null,null,null,null,null,{"$f":"'Project 1'!I10:X10","v":0}]
[null,"Email",null,null,null,null,null,null,{"$f":"'Project 1'!I11:X11","v":0}]
[null,"Phone Number ",null,null,null,null,null,null,{"$f":"'Project 1'!I12:X12","v":0}]
[]
[null,"New Project",null,"Club Information"]
[null,null,null,"Club Delivering",null,null,null,null,"Hub Club Type",null,null,null,"Hub Club Postcode",null,null,"Sport",null,null,"Sport Discipline",null,null,"Sport (Other)"]
[null,null,null,"Insert name of club delivering",null,null,null,null,"Select from drop down list",null,null,null,"Insert postcode",null,null,"Select from drop down list",null,null,"Select from drop down list",null,null,"Required if you selected 'Other'"]
[]
[null,null,null,"Satellite Club Information"]
[null,null,null,"School(s)/College(s)",null,null,null,null,null,"Satellite Club venue",null,null,"Venue Borough",null,null,"Venue Postcode",null,null,"Venue Type",null,null,"Age Focus"]
[null,null,null,"Insert venue of sessions",null,null,null,null,null,"Insert venue of sessions",null,null,"Select from drop down list",null,null,"Insert postcode",null,null,"Select from drop down list",null,null,"Select from drop down list"]
[]
[null,null,null,"Number of Weeks",null,null,"Hours per Week",null,null,"Start Date",null,null,"Day",null,null,"Time",null,null,"Club Focus",null,null,"First Year Funded"]
[null,null,null,30,null,null,"Select from drop down list",null,null,"Insert confirmed start date",null,null,"Select from drop down list",null,null,"Insert start and end time",null,null,"Select from drop down list",null,null,"Select from drop down list"]
[]
[null,null,null,"Budget Information"]
[null,null,null,"Coach/Volunteer costs",null,null,"Facility Hire",null,null,"Equipment",null,null,"Other",null,null,"Income",null,null,"Notes"]
[null,null,null,"Cost/hr",{"$f":"D23","v":30},{"$f":"G23","v":"Select from drop down list"},"Cost/hr",{"$f":"D23","v":30},{"$f":"G23","v":"Select from drop down list"},"Please include the cost of purchasing/hiring equipment",null,null,"Please include any other costs, inc asst. coach",null,null,"Please include any income (e.g. NGB funding, participant fees)",null,null,"Please provide an itemised breakdown and description of equipment/other costs"]
[null,null,null,null,"wks","hrs/wk",null,"wks","hrs/wk"]
[null,null,null,{"$f":"SUM(D27*E27*F27)","v":{"$error":"#VALUE!"}},null,null,{"$f":"SUM(G27*H27*I27)","v":{"$error":"#VALUE!"}},null,null,"Insert cost here",null,null,"Insert cost here",null,null,"Insert cost here"]
[]
[null,null,null,"Total Funding Requested",null,null,null,{"$f":"SUMIF(D29:O29,\">0\")-(SUMIF(P29,\">0\"))","v":0},null,null,null,null,null,null,null,null,null,null,"Reporting to",null,null,"Select from drop down list"]
[]
[null,null,null,"SUSTAINABILITY",null,null,"How will you ensure your Satellite Club is sustainable and continues beyond the funding period? Think about;"]
[null,null,null,null,null,null,"How will you generate an income?",null,null,null,null,null,"Examples: Charge participants, create membership packages, sponsorship, fundraising events"]
[null,null,null,null,null,null,"Will you charge participants? How much?",null,null,null,null,null,"Examples: Each participant will be charged £2.50 per session or £25 per term (12 weeks)"]
[null,null,null,null,null,null,"Will training be offered?",null,null,null,null,null,"Examples: access Coaching Bursary to upskill and train coaches, volunteers and participants"]
[null,null,null,null,null,null,"How will you create pathways for participants?",null,null,null,null,null,"Examples: participants sent to hub club, Satellite Club used as club beginner session"]
[null,null,null,null,null,null,"What incentives will you offer for continued participation?",null,null,null,null,null,"Examples: regular verbal praise and feedback, discounted hub club membership"]
[]
[null,"Please tick the boxes and agree that you will;",null,null,null,null,null,null,null,null,null,null,null,null,null,null,null,null,null,null,null,null,"ü"]
[null,"Ensure that the club responsible for satellite club delivery will have appropriate and up to date insurance documentation"]
[null,"Ensure that the club responsible for satellite club delivery will have appropriate and up to date health and safety policy and safeguarding policy"]
[null,"Ensure that the coach(s) leading and overseeing satellite club delivery has appropriate and up to date qualifications and experience"]
[null,"Ensure the delivery of the satellite club is in an appropriate and safe facility at all times"]
[null,"Ensure the satellite club is delivered for a minimum of 2 school terms and weekly sessions take place outside of curriculum hours"]
[null,"Ensure the satellite club is delivered to the target audience of 14-25 year olds, and take the necessary steps to ensure delivery is inclusive"]
[null,"Promote and encourage less sporty and inactive young people to participate in your satellite club"]
[null,"Deliver activities in an informal and social environment to meet the needs of the young people in attendance"]
[null,"Make the necessary plans to ensure that exits routes are provided and the satellite club is sustained long term beyond the funding period"]
[null,"Monitor and report all relevant participation data to the NGB as and when required and agreed"]
[null,"Use all funding grants as they are intended and keep relevant records as evidence"]

{"sheet":"Project 9","index":10,"n_rows":51,"n_cols":23,"rows_kept":51,"cut":false,"hidden":true,"merged":[[50,1,50,21],[50,22,50,23],[47,1,47,21],[47,22,47,23],[48,1,48,21],[48,22,48,23],[49,1,49,21],[49,22,49,23],[44,1,44,21],[44,22,44,23],[45,1,45,21],[45,22,45,23],[46,1,46,21],[46,22,46,23],[41,1,41,21],[41,22,41,23],[42,1,42,21],[42,22,42,23],[43,1,43,21],[43,22,43,23],[37,6,37,11],[37,12,37,23],[39,1,39,21],[39,22,39,23],[40,1,40,21],[40,22,40,23],[32,3,37,5],[32,6,32,23],[33,6,33,11],[33,12,33,23],[34,6,34,11],[34,12,34,23],[35,6,35,11],[35,12,35,23],[36,6,36,11],[36,12,36,23],[13,1,37,2],[13,3,13,23],[28,15,28,17],[29,3,29,23],[30,3,30,6],[30,7,30,9],[30,18,30,20],[30,21,30,23],[26,3,27,3],[26,6,27,6],[26,9,27,11],[26,12,27,14],[26,15,27,17],[26,18,28,23],[28,3,28,5],[28,6,28,8],[28,9,28,11],[28,12,28,14],[24,3,24,23],[25,3,25,5],[25,6,25,8],[25,9,25,11],[25,12,25,14],[25,15,25,17],[25,18,25,23],[21,21,21,23],[22,3,22,5],[22,6,22,8],[22,9,22,11],[22,12,22,14],[22,15,22,17],[22,18,22,20],[22,21,22,23],[21,3,21,5],[21,6,21,8],[21,9,21,11],[21,12,21,14],[21,15,21,17],[21,18,21,20],[19,3,19,8],[19,9,19,11],[19,12,19,14],[19,15,19,17],[19,18,19,20],[19,21,19,23],[15,12,15,14],[15,15,15,17],[15,18,15,20],[15,21,15,23],[17,3,17,23],[18,3,18,8],[18,9,18,11],[18,12,18,14],[18,15,18,17],[18,18,18,20],[15,3,15,7],[15,8,15,11],[9,1,9,7],[9,8,9,23],[10,1,10,7],[10,8,10,23],[11,1,11,7],[11,8,11,23],[18,21,18,23],[1,1,1,23],[4,1,4,23],[6,1,6,23],[7,1,7,7],[7,8,7,23],[8,1,8,7],[8,8,8,23],[14,3,14,7],[14,8,14,11],[14,12,14,14],[14,15,14,17],[14,18,14,20],[14,21,14,23]]}
[]
[null,"Club Application Form"]
[]
[]
[null,"Thank you for taking the time to complete the Satellite Clubs Application Form and your support to get 1 million Londoners more active by 2020!"]
[]
[null,"Applicant Details"]
[null,"Lead Contact Name",null,null,null,null,null,null,{"$f":"'Project 1'!I8:X8","v":0}]
[null,"Name of Club / Organisation",null,null,null,null,null,null,{"$f":"'Project 1'!I9:X9","v":0}]
[null,"Lead Contact Role",null,null,null,null,null,null,{"$f":"'Project 1'!I10:X10","v":0}]
[null,"Email",null,null,null,null,null,null,{"$f":"'Project 1'!I11:X11","v":0}]
[null,"Phone Number ",null,null,null,null,null,null,{"$f":"'Project 1'!I12:X12","v":0}]
[]
[null,"New Project",null,"Club Information"]
[null,null,null,"Club Delivering",null,null,null,null,"Hub Club Type",null,null,null,"Hub Club Postcode",null,null,"Sport",null,null,"Sport Discipline",null,null,"Sport (Other)"]
[null,null,null,"Insert name of club delivering",null,null,null,null,"Select from drop down list",null,null,null,"Insert postcode",null,null,"Select from drop down list",null,null,"Select from drop down list",null,null,"Required if you selected 'Other'"]
[]
[null,null,null,"Satellite Club Information"]
[null,null,null,"School(s)/College(s)",null,null,null,null,null,"Satellite Club venue",null,null,"Venue Borough",null,null,"Venue Postcode",null,null,"Venue Type",null,null,"Age Focus"]
[null,null,null,"Insert venue of sessions",null,null,null,null,null,"Insert venue of sessions",null,null,"Select from drop down list",null,null,"Insert postcode",null,null,"Select from drop down list",null,null,"Select from drop down list"]
[]
[null,null,null,"Number of Weeks",null,null,"Hours per Week",null,null,"Start Date",null,null,"Day",null,null,"Time",null,null,"Club Focus",null,null,"First Year Funded"]
[null,null,null,30,null,null,"Select from drop down list",null,null,"Insert confirmed start date",null,null,"Select from drop down list",null,null,"Insert start and end time",null,null,"Select from drop down list",null,null,"Select from drop down list"]
[]
[null,null,null,"Budget Information"]
[null,null,null,"Coach/Volunteer costs",null,null,"Facility Hire",null,null,"Equipment",null,null,"Other",null,null,"Income",null,null,"Notes"]
[null,null,null,"Cost/hr",{"$f":"D23","v":30},{"$f":"G23","v":"Select from drop down list"},"Cost/hr",{"$f":"D23","v":30},{"$f":"G23","v":"Select from drop down list"},"Please include the cost of purchasing/hiring equipment",null,null,"Please include any other costs, inc asst. coach",null,null,"Please include any income (e.g. NGB funding, participant fees)",null,null,"Please provide an itemised breakdown and description of equipment/other costs"]
[null,null,null,null,"wks","hrs/wk",null,"wks","hrs/wk"]
[null,null,null,{"$f":"SUM(D27*E27*F27)","v":{"$error":"#VALUE!"}},null,null,{"$f":"SUM(G27*H27*I27)","v":{"$error":"#VALUE!"}},null,null,"Insert cost here",null,null,"Insert cost here",null,null,"Insert cost here"]
[]
[null,null,null,"Total Funding Requested",null,null,null,{"$f":"SUMIF(D29:O29,\">0\")-(SUMIF(P29,\">0\"))","v":0},null,null,null,null,null,null,null,null,null,null,"Reporting to",null,null,"Select from drop down list"]
[]
[null,null,null,"SUSTAINABILITY",null,null,"How will you ensure your Satellite Club is sustainable and continues beyond the funding period? Think about;"]
[null,null,null,null,null,null,"How will you generate an income?",null,null,null,null,null,"Examples: Charge participants, create membership packages, sponsorship, fundraising events"]
[null,null,null,null,null,null,"Will you charge participants? How much?",null,null,null,null,null,"Examples: Each participant will be charged £2.50 per session or £25 per term (12 weeks)"]
[null,null,null,null,null,null,"Will training be offered?",null,null,null,null,null,"Examples: access Coaching Bursary to upskill and train coaches, volunteers and participants"]
[null,null,null,null,null,null,"How will you create pathways for participants?",null,null,null,null,null,"Examples: participants sent to hub club, Satellite Club used as club beginner session"]
[null,null,null,null,null,null,"What incentives will you offer for continued participation?",null,null,null,null,null,"Examples: regular verbal praise and feedback, discounted hub club membership"]
[]
[null,"Please tick the boxes and agree that you will;",null,null,null,null,null,null,null,null,null,null,null,null,null,null,null,null,null,null,null,null,"ü"]
[null,"Ensure that the club responsible for satellite club delivery will have appropriate and up to date insurance documentation"]
[null,"Ensure that the club responsible for satellite club delivery will have appropriate and up to date health and safety policy and safeguarding policy"]
[null,"Ensure that the coach(s) leading and overseeing satellite club delivery has appropriate and up to date qualifications and experience"]
[null,"Ensure the delivery of the satellite club is in an appropriate and safe facility at all times"]
[null,"Ensure the satellite club is delivered for a minimum of 2 school terms and weekly sessions take place outside of curriculum hours"]
[null,"Ensure the satellite club is delivered to the target audience of 14-25 year olds, and take the necessary steps to ensure delivery is inclusive"]
[null,"Promote and encourage less sporty and inactive young people to participate in your satellite club"]
[null,"Deliver activities in an informal and social environment to meet the needs of the young people in attendance"]
[null,"Make the necessary plans to ensure that exits routes are provided and the satellite club is sustained long term beyond the funding period"]
[null,"Monitor and report all relevant participation data to the NGB as and when required and agreed"]
[null,"Use all funding grants as they are intended and keep relevant records as evidence"]

{"sheet":"Project 10","index":11,"n_rows":51,"n_cols":23,"rows_kept":51,"cut":false,"hidden":true,"merged":[[50,1,50,21],[50,22,50,23],[47,1,47,21],[47,22,47,23],[48,1,48,21],[48,22,48,23],[49,1,49,21],[49,22,49,23],[44,1,44,21],[44,22,44,23],[45,1,45,21],[45,22,45,23],[46,1,46,21],[46,22,46,23],[41,1,41,21],[41,22,41,23],[42,1,42,21],[42,22,42,23],[43,1,43,21],[43,22,43,23],[37,6,37,11],[37,12,37,23],[39,1,39,21],[39,22,39,23],[40,1,40,21],[40,22,40,23],[32,3,37,5],[32,6,32,23],[33,6,33,11],[33,12,33,23],[34,6,34,11],[34,12,34,23],[35,6,35,11],[35,12,35,23],[36,6,36,11],[36,12,36,23],[13,1,37,2],[13,3,13,23],[28,15,28,17],[29,3,29,23],[30,3,30,6],[30,7,30,9],[30,18,30,20],[30,21,30,23],[26,3,27,3],[26,6,27,6],[26,9,27,11],[26,12,27,14],[26,15,27,17],[26,18,28,23],[28,3,28,5],[28,6,28,8],[28,9,28,11],[28,12,28,14],[24,3,24,23],[25,3,25,5],[25,6,25,8],[25,9,25,11],[25,12,25,14],[25,15,25,17],[25,18,25,23],[21,21,21,23],[22,3,22,5],[22,6,22,8],[22,9,22,11],[22,12,22,14],[22,15,22,17],[22,18,22,20],[22,21,22,23],[21,3,21,5],[21,6,21,8],[21,9,21,11],[21,12,21,14],[21,15,21,17],[21,18,21,20],[19,3,19,8],[19,9,19,11],[19,12,19,14],[19,15,19,17],[19,18,19,20],[19,21,19,23],[15,12,15,14],[15,15,15,17],[15,18,15,20],[15,21,15,23],[17,3,17,23],[18,3,18,8],[18,9,18,11],[18,12,18,14],[18,15,18,17],[18,18,18,20],[15,3,15,7],[15,8,15,11],[9,1,9,7],[9,8,9,23],[10,1,10,7],[10,8,10,23],[11,1,11,7],[11,8,11,23],[18,21,18,23],[1,1,1,23],[4,1,4,23],[6,1,6,23],[7,1,7,7],[7,8,7,23],[8,1,8,7],[8,8,8,23],[14,3,14,7],[14,8,14,11],[14,12,14,14],[14,15,14,17],[14,18,14,20],[14,21,14,23]]}
[]
[null,"Club Application Form"]
[]
[]
[null,"Thank you for taking the time to complete the Satellite Clubs Application Form and your support to get 1 million Londoners more active by 2020!"]
[]
[null,"Applicant Details"]
[null,"Lead Contact Name",null,null,null,null,null,null,{"$f":"'Project 1'!I8:X8","v":0}]
[null,"Name of Club / Organisation",null,null,null,null,null,null,{"$f":"'Project 1'!I9:X9","v":0}]
[null,"Lead Contact Role",null,null,null,null,null,null,{"$f":"'Project 1'!I10:X10","v":0}]
[null,"Email",null,null,null,null,null,null,{"$f":"'Project 1'!I11:X11","v":0}]
[null,"Phone Number ",null,null,null,null,null,null,{"$f":"'Project 1'!I12:X12","v":0}]
[]
[null,"New Project",null,"Club Information"]
[null,null,null,"Club Delivering",null,null,null,null,"Hub Club Type",null,null,null,"Hub Club Postcode",null,null,"Sport",null,null,"Sport Discipline",null,null,"Sport (Other)"]
[null,null,null,"Insert name of club delivering",null,null,null,null,"Select from drop down list",null,null,null,"Insert postcode",null,null,"Select from drop down list",null,null,"Select from drop down list",null,null,"Required if you selected 'Other'"]
[]
[null,null,null,"Satellite Club Information"]
[null,null,null,"School(s)/College(s)",null,null,null,null,null,"Satellite Club venue",null,null,"Venue Borough",null,null,"Venue Postcode",null,null,"Venue Type",null,null,"Age Focus"]
[null,null,null,"Insert venue of sessions",null,null,null,null,null,"Insert venue of sessions",null,null,"Select from drop down list",null,null,"Insert postcode",null,null,"Select from drop down list",null,null,"Select from drop down list"]
[]
[null,null,null,"Number of Weeks",null,null,"Hours per Week",null,null,"Start Date",null,null,"Day",null,null,"Time",null,null,"Club Focus",null,null,"First Year Funded"]
[null,null,null,30,null,null,"Select from drop down list",null,null,"Insert confirmed start date",null,null,"Select from drop down list",null,null,"Insert start and end time",null,null,"Select from drop down list",null,null,"Select from drop down list"]
[]
[null,null,null,"Budget Information"]
[null,null,null,"Coach/Volunteer costs",null,null,"Facility Hire",null,null,"Equipment",null,null,"Other",null,null,"Income",null,null,"Notes"]
[null,null,null,"Cost/hr",{"$f":"D23","v":30},{"$f":"G23","v":"Select from drop down list"},"Cost/hr",{"$f":"D23","v":30},{"$f":"G23","v":"Select from drop down list"},"Please include the cost of purchasing/hiring equipment",null,null,"Please include any other costs, inc asst. coach",null,null,"Please include any income (e.g. NGB funding, participant fees)",null,null,"Please provide an itemised breakdown and description of equipment/other costs"]
[null,null,null,null,"wks","hrs/wk",null,"wks","hrs/wk"]
[null,null,null,{"$f":"SUM(D27*E27*F27)","v":{"$error":"#VALUE!"}},null,null,{"$f":"SUM(G27*H27*I27)","v":{"$error":"#VALUE!"}},null,null,"Insert cost here",null,null,"Insert cost here",null,null,"Insert cost here"]
[]
[null,null,null,"Total Funding Requested",null,null,null,{"$f":"SUMIF(D29:O29,\">0\")-(SUMIF(P29,\">0\"))","v":0},null,null,null,null,null,null,null,null,null,null,"Reporting to",null,null,"Select from drop down list"]
[]
[null,null,null,"SUSTAINABILITY",null,null,"How will you ensure your Satellite Club is sustainable and continues beyond the funding period? Think about;"]
[null,null,null,null,null,null,"How will you generate an income?",null,null,null,null,null,"Examples: Charge participants, create membership packages, sponsorship, fundraising events"]
[null,null,null,null,null,null,"Will you charge participants? How much?",null,null,null,null,null,"Examples: Each participant will be charged £2.50 per session or £25 per term (12 weeks)"]
[null,null,null,null,null,null,"Will training be offered?",null,null,null,null,null,"Examples: access Coaching Bursary to upskill and train coaches, volunteers and participants"]
[null,null,null,null,null,null,"How will you create pathways for participants?",null,null,null,null,null,"Examples: participants sent to hub club, Satellite Club used as club beginner session"]
[null,null,null,null,null,null,"What incentives will you offer for continued participation?",null,null,null,null,null,"Examples: regular verbal praise and feedback, discounted hub club membership"]
[]
[null,"Please tick the boxes and agree that you will;",null,null,null,null,null,null,null,null,null,null,null,null,null,null,null,null,null,null,null,null,"ü"]
[null,"Ensure that the club responsible for satellite club delivery will have appropriate and up to date insurance documentation"]
[null,"Ensure that the club responsible for satellite club delivery will have appropriate and up to date health and safety policy and safeguarding policy"]
[null,"Ensure that the coach(s) leading and overseeing satellite club delivery has appropriate and up to date qualifications and experience"]
[null,"Ensure the delivery of the satellite club is in an appropriate and safe facility at all times"]
[null,"Ensure the satellite club is delivered for a minimum of 2 school terms and weekly sessions take place outside of curriculum hours"]
[null,"Ensure the satellite club is delivered to the target audience of 14-25 year olds, and take the necessary steps to ensure delivery is inclusive"]
[null,"Promote and encourage less sporty and inactive young people to participate in your satellite club"]
[null,"Deliver activities in an informal and social environment to meet the needs of the young people in attendance"]
[null,"Make the necessary plans to ensure that exits routes are provided and the satellite club is sustained long term beyond the funding period"]
[null,"Monitor and report all relevant participation data to the NGB as and when required and agreed"]
[null,"Use all funding grants as they are intended and keep relevant records as evidence"]

{"sheet":"Project 11","index":12,"n_rows":51,"n_cols":23,"rows_kept":51,"cut":false,"hidden":true,"merged":[[50,1,50,21],[50,22,50,23],[47,1,47,21],[47,22,47,23],[48,1,48,21],[48,22,48,23],[49,1,49,21],[49,22,49,23],[44,1,44,21],[44,22,44,23],[45,1,45,21],[45,22,45,23],[46,1,46,21],[46,22,46,23],[41,1,41,21],[41,22,41,23],[42,1,42,21],[42,22,42,23],[43,1,43,21],[43,22,43,23],[37,6,37,11],[37,12,37,23],[39,1,39,21],[39,22,39,23],[40,1,40,21],[40,22,40,23],[32,3,37,5],[32,6,32,23],[33,6,33,11],[33,12,33,23],[34,6,34,11],[34,12,34,23],[35,6,35,11],[35,12,35,23],[36,6,36,11],[36,12,36,23],[13,1,37,2],[13,3,13,23],[28,15,28,17],[29,3,29,23],[30,3,30,6],[30,7,30,9],[30,18,30,20],[30,21,30,23],[26,3,27,3],[26,6,27,6],[26,9,27,11],[26,12,27,14],[26,15,27,17],[26,18,28,23],[28,3,28,5],[28,6,28,8],[28,9,28,11],[28,12,28,14],[24,3,24,23],[25,3,25,5],[25,6,25,8],[25,9,25,11],[25,12,25,14],[25,15,25,17],[25,18,25,23],[21,21,21,23],[22,3,22,5],[22,6,22,8],[22,9,22,11],[22,12,22,14],[22,15,22,17],[22,18,22,20],[22,21,22,23],[21,3,21,5],[21,6,21,8],[21,9,21,11],[21,12,21,14],[21,15,21,17],[21,18,21,20],[19,3,19,8],[19,9,19,11],[19,12,19,14],[19,15,19,17],[19,18,19,20],[19,21,19,23],[15,12,15,14],[15,15,15,17],[15,18,15,20],[15,21,15,23],[17,3,17,23],[18,3,18,8],[18,9,18,11],[18,12,18,14],[18,15,18,17],[18,18,18,20],[15,3,15,7],[15,8,15,11],[9,1,9,7],[9,8,9,23],[10,1,10,7],[10,8,10,23],[11,1,11,7],[11,8,11,23],[18,21,18,23],[1,1,1,23],[4,1,4,23],[6,1,6,23],[7,1,7,7],[7,8,7,23],[8,1,8,7],[8,8,8,23],[14,3,14,7],[14,8,14,11],[14,12,14,14],[14,15,14,17],[14,18,14,20],[14,21,14,23]]}
[]
[null,"Club Application Form"]
[]
[]
[null,"Thank you for taking the time to complete the Satellite Clubs Application Form and your support to get 1 million Londoners more active by 2020!"]
[]
[null,"Applicant Details"]
[null,"Lead Contact Name",null,null,null,null,null,null,{"$f":"'Project 1'!I8:X8","v":0}]
[null,"Name of Club / Organisation",null,null,null,null,null,null,{"$f":"'Project 1'!I9:X9","v":0}]
[null,"Lead Contact Role",null,null,null,null,null,null,{"$f":"'Project 1'!I10:X10","v":0}]
[null,"Email",null,null,null,null,null,null,{"$f":"'Project 1'!I11:X11","v":0}]
[null,"Phone Number ",null,null,null,null,null,null,{"$f":"'Project 1'!I12:X12","v":0}]
[]
[null,"New Project",null,"Club Information"]
[null,null,null,"Club Delivering",null,null,null,null,"Hub Club Type",null,null,null,"Hub Club Postcode",null,null,"Sport",null,null,"Sport Discipline",null,null,"Sport (Other)"]
[null,null,null,"Insert name of club delivering",null,null,null,null,"Select from drop down list",null,null,null,"Insert postcode",null,null,"Select from drop down list",null,null,"Select from drop down list",null,null,"Required if you selected 'Other'"]
[]
[null,null,null,"Satellite Club Information"]
[null,null,null,"School(s)/College(s)",null,null,null,null,null,"Satellite Club venue",null,null,"Venue Borough",null,null,"Venue Postcode",null,null,"Venue Type",null,null,"Age Focus"]
[null,null,null,"Insert venue of sessions",null,null,null,null,null,"Insert venue of sessions",null,null,"Select from drop down list",null,null,"Insert postcode",null,null,"Select from drop down list",null,null,"Select from drop down list"]
[]
[null,null,null,"Number of Weeks",null,null,"Hours per Week",null,null,"Start Date",null,null,"Day",null,null,"Time",null,null,"Club Focus",null,null,"First Year Funded"]
[null,null,null,30,null,null,"Select from drop down list",null,null,"Insert confirmed start date",null,null,"Select from drop down list",null,null,"Insert start and end time",null,null,"Select from drop down list",null,null,"Select from drop down list"]
[]
[null,null,null,"Budget Information"]
[null,null,null,"Coach/Volunteer costs",null,null,"Facility Hire",null,null,"Equipment",null,null,"Other",null,null,"Income",null,null,"Notes"]
[null,null,null,"Cost/hr",{"$f":"D23","v":30},{"$f":"G23","v":"Select from drop down list"},"Cost/hr",{"$f":"D23","v":30},{"$f":"G23","v":"Select from drop down list"},"Please include the cost of purchasing/hiring equipment",null,null,"Please include any other costs, inc asst. coach",null,null,"Please include any income (e.g. NGB funding, participant fees)",null,null,"Please provide an itemised breakdown and description of equipment/other costs"]
[null,null,null,null,"wks","hrs/wk",null,"wks","hrs/wk"]
[null,null,null,{"$f":"SUM(D27*E27*F27)","v":{"$error":"#VALUE!"}},null,null,{"$f":"SUM(G27*H27*I27)","v":{"$error":"#VALUE!"}},null,null,"Insert cost here",null,null,"Insert cost here",null,null,"Insert cost here"]
[]
[null,null,null,"Total Funding Requested",null,null,null,{"$f":"SUMIF(D29:O29,\">0\")-(SUMIF(P29,\">0\"))","v":0},null,null,null,null,null,null,null,null,null,null,"Reporting to",null,null,"Select from drop down list"]
[]
[null,null,null,"SUSTAINABILITY",null,null,"How will you ensure your Satellite Club is sustainable and continues beyond the funding period? Think about;"]
[null,null,null,null,null,null,"How will you generate an income?",null,null,null,null,null,"Examples: Charge participants, create membership packages, sponsorship, fundraising events"]
[null,null,null,null,null,null,"Will you charge participants? How much?",null,null,null,null,null,"Examples: Each participant will be charged £2.50 per session or £25 per term (12 weeks)"]
[null,null,null,null,null,null,"Will training be offered?",null,null,null,null,null,"Examples: access Coaching Bursary to upskill and train coaches, volunteers and participants"]
[null,null,null,null,null,null,"How will you create pathways for participants?",null,null,null,null,null,"Examples: participants sent to hub club, Satellite Club used as club beginner session"]
[null,null,null,null,null,null,"What incentives will you offer for continued participation?",null,null,null,null,null,"Examples: regular verbal praise and feedback, discounted hub club membership"]
[]
[null,"Please tick the boxes and agree that you will;",null,null,null,null,null,null,null,null,null,null,null,null,null,null,null,null,null,null,null,null,"ü"]
[null,"Ensure that the club responsible for satellite club delivery will have appropriate and up to date insurance documentation"]
[null,"Ensure that the club responsible for satellite club delivery will have appropriate and up to date health and safety policy and safeguarding policy"]
[null,"Ensure that the coach(s) leading and overseeing satellite club delivery has appropriate and up to date qualifications and experience"]
[null,"Ensure the delivery of the satellite club is in an appropriate and safe facility at all times"]
[null,"Ensure the satellite club is delivered for a minimum of 2 school terms and weekly sessions take place outside of curriculum hours"]
[null,"Ensure the satellite club is delivered to the target audience of 14-25 year olds, and take the necessary steps to ensure delivery is inclusive"]
[null,"Promote and encourage less sporty and inactive young people to participate in your satellite club"]
[null,"Deliver activities in an informal and social environment to meet the needs of the young people in attendance"]
[null,"Make the necessary plans to ensure that exits routes are provided and the satellite club is sustained long term beyond the funding period"]
[null,"Monitor and report all relevant participation data to the NGB as and when required and agreed"]
[null,"Use all funding grants as they are intended and keep relevant records as evidence"]

{"sheet":"Project 12","index":13,"n_rows":51,"n_cols":23,"rows_kept":51,"cut":false,"hidden":true,"merged":[[50,1,50,21],[50,22,50,23],[47,1,47,21],[47,22,47,23],[48,1,48,21],[48,22,48,23],[49,1,49,21],[49,22,49,23],[44,1,44,21],[44,22,44,23],[45,1,45,21],[45,22,45,23],[46,1,46,21],[46,22,46,23],[41,1,41,21],[41,22,41,23],[42,1,42,21],[42,22,42,23],[43,1,43,21],[43,22,43,23],[37,6,37,11],[37,12,37,23],[39,1,39,21],[39,22,39,23],[40,1,40,21],[40,22,40,23],[32,3,37,5],[32,6,32,23],[33,6,33,11],[33,12,33,23],[34,6,34,11],[34,12,34,23],[35,6,35,11],[35,12,35,23],[36,6,36,11],[36,12,36,23],[13,1,37,2],[13,3,13,23],[28,15,28,17],[29,3,29,23],[30,3,30,6],[30,7,30,9],[30,18,30,20],[30,21,30,23],[26,3,27,3],[26,6,27,6],[26,9,27,11],[26,12,27,14],[26,15,27,17],[26,18,28,23],[28,3,28,5],[28,6,28,8],[28,9,28,11],[28,12,28,14],[24,3,24,23],[25,3,25,5],[25,6,25,8],[25,9,25,11],[25,12,25,14],[25,15,25,17],[25,18,25,23],[21,21,21,23],[22,3,22,5],[22,6,22,8],[22,9,22,11],[22,12,22,14],[22,15,22,17],[22,18,22,20],[22,21,22,23],[21,3,21,5],[21,6,21,8],[21,9,21,11],[21,12,21,14],[21,15,21,17],[21,18,21,20],[19,3,19,8],[19,9,19,11],[19,12,19,14],[19,15,19,17],[19,18,19,20],[19,21,19,23],[15,12,15,14],[15,15,15,17],[15,18,15,20],[15,21,15,23],[17,3,17,23],[18,3,18,8],[18,9,18,11],[18,12,18,14],[18,15,18,17],[18,18,18,20],[15,3,15,7],[15,8,15,11],[9,1,9,7],[9,8,9,23],[10,1,10,7],[10,8,10,23],[11,1,11,7],[11,8,11,23],[18,21,18,23],[1,1,1,23],[4,1,4,23],[6,1,6,23],[7,1,7,7],[7,8,7,23],[8,1,8,7],[8,8,8,23],[14,3,14,7],[14,8,14,11],[14,12,14,14],[14,15,14,17],[14,18,14,20],[14,21,14,23]]}
[]
[null,"Club Application Form"]
[]
[]
[null,"Thank you for taking the time to complete the Satellite Clubs Application Form and your support to get 1 million Londoners more active by 2020!"]
[]
[null,"Applicant Details"]
[null,"Lead Contact Name",null,null,null,null,null,null,{"$f":"'Project 1'!I8:X8","v":0}]
[null,"Name of Club / Organisation",null,null,null,null,null,null,{"$f":"'Project 1'!I9:X9","v":0}]
[null,"Lead Contact Role",null,null,null,null,null,null,{"$f":"'Project 1'!I10:X10","v":0}]
[null,"Email",null,null,null,null,null,null,{"$f":"'Project 1'!I11:X11","v":0}]
[null,"Phone Number ",null,null,null,null,null,null,{"$f":"'Project 1'!I12:X12","v":0}]
[]
[null,"New Project",null,"Club Information"]
[null,null,null,"Club Delivering",null,null,null,null,"Hub Club Type",null,null,null,"Hub Club Postcode",null,null,"Sport",null,null,"Sport Discipline",null,null,"Sport (Other)"]
[null,null,null,"Insert name of club delivering",null,null,null,null,"Select from drop down list",null,null,null,"Insert postcode",null,null,"Select from drop down list",null,null,"Select from drop down list",null,null,"Required if you selected 'Other'"]
[]
[null,null,null,"Satellite Club Information"]
[null,null,null,"School(s)/College(s)",null,null,null,null,null,"Satellite Club venue",null,null,"Venue Borough",null,null,"Venue Postcode",null,null,"Venue Type",null,null,"Age Focus"]
[null,null,null,"Insert venue of sessions",null,null,null,null,null,"Insert venue of sessions",null,null,"Select from drop down list",null,null,"Insert postcode",null,null,"Select from drop down list",null,null,"Select from drop down list"]
[]
[null,null,null,"Number of Weeks",null,null,"Hours per Week",null,null,"Start Date",null,null,"Day",null,null,"Time",null,null,"Club Focus",null,null,"First Year Funded"]
[null,null,null,30,null,null,"Select from drop down list",null,null,"Insert confirmed start date",null,null,"Select from drop down list",null,null,"Insert start and end time",null,null,"Select from drop down list",null,null,"Select from drop down list"]
[]
[null,null,null,"Budget Information"]
[null,null,null,"Coach/Volunteer costs",null,null,"Facility Hire",null,null,"Equipment",null,null,"Other",null,null,"Income",null,null,"Notes"]
[null,null,null,"Cost/hr",{"$f":"D23","v":30},{"$f":"G23","v":"Select from drop down list"},"Cost/hr",{"$f":"D23","v":30},{"$f":"G23","v":"Select from drop down list"},"Please include the cost of purchasing/hiring equipment",null,null,"Please include any other costs, inc asst. coach",null,null,"Please include any income (e.g. NGB funding, participant fees)",null,null,"Please provide an itemised breakdown and description of equipment/other costs"]
[null,null,null,null,"wks","hrs/wk",null,"wks","hrs/wk"]
[null,null,null,{"$f":"SUM(D27*E27*F27)","v":{"$error":"#VALUE!"}},null,null,{"$f":"SUM(G27*H27*I27)","v":{"$error":"#VALUE!"}},null,null,"Insert cost here",null,null,"Insert cost here",null,null,"Insert cost here"]
[]
[null,null,null,"Total Funding Requested",null,null,null,{"$f":"SUMIF(D29:O29,\">0\")-(SUMIF(P29,\">0\"))","v":0},null,null,null,null,null,null,null,null,null,null,"Reporting to",null,null,"Select from drop down list"]
[]
[null,null,null,"SUSTAINABILITY",null,null,"How will you ensure your Satellite Club is sustainable and continues beyond the funding period? Think about;"]
[null,null,null,null,null,null,"How will you generate an income?",null,null,null,null,null,"Examples: Charge participants, create membership packages, sponsorship, fundraising events"]
[null,null,null,null,null,null,"Will you charge participants? How much?",null,null,null,null,null,"Examples: Each participant will be charged £2.50 per session or £25 per term (12 weeks)"]
[null,null,null,null,null,null,"Will training be offered?",null,null,null,null,null,"Examples: access Coaching Bursary to upskill and train coaches, volunteers and participants"]
[null,null,null,null,null,null,"How will you create pathways for participants?",null,null,null,null,null,"Examples: participants sent to hub club, Satellite Club used as club beginner session"]
[null,null,null,null,null,null,"What incentives will you offer for continued participation?",null,null,null,null,null,"Examples: regular verbal praise and feedback, discounted hub club membership"]
[]
[null,"Please tick the boxes and agree that you will;",null,null,null,null,null,null,null,null,null,null,null,null,null,null,null,null,null,null,null,null,"ü"]
[null,"Ensure that the club responsible for satellite club delivery will have appropriate and up to date insurance documentation"]
[null,"Ensure that the club responsible for satellite club delivery will have appropriate and up to date health and safety policy and safeguarding policy"]
[null,"Ensure that the coach(s) leading and overseeing satellite club delivery has appropriate and up to date qualifications and experience"]
[null,"Ensure the delivery of the satellite club is in an appropriate and safe facility at all times"]
[null,"Ensure the satellite club is delivered for a minimum of 2 school terms and weekly sessions take place outside of curriculum hours"]
[null,"Ensure the satellite club is delivered to the target audience of 14-25 year olds, and take the necessary steps to ensure delivery is inclusive"]
[null,"Promote and encourage less sporty and inactive young people to participate in your satellite club"]
[null,"Deliver activities in an informal and social environment to meet the needs of the young people in attendance"]
[null,"Make the necessary plans to ensure that exits routes are provided and the satellite club is sustained long term beyond the funding period"]
[null,"Monitor and report all relevant participation data to the NGB as and when required and agreed"]
[null,"Use all funding grants as they are intended and keep relevant records as evidence"]

{"sheet":"Project 13","index":14,"n_rows":51,"n_cols":23,"rows_kept":51,"cut":false,"hidden":true,"merged":[[50,1,50,21],[50,22,50,23],[47,1,47,21],[47,22,47,23],[48,1,48,21],[48,22,48,23],[49,1,49,21],[49,22,49,23],[44,1,44,21],[44,22,44,23],[45,1,45,21],[45,22,45,23],[46,1,46,21],[46,22,46,23],[41,1,41,21],[41,22,41,23],[42,1,42,21],[42,22,42,23],[43,1,43,21],[43,22,43,23],[37,6,37,11],[37,12,37,23],[39,1,39,21],[39,22,39,23],[40,1,40,21],[40,22,40,23],[32,3,37,5],[32,6,32,23],[33,6,33,11],[33,12,33,23],[34,6,34,11],[34,12,34,23],[35,6,35,11],[35,12,35,23],[36,6,36,11],[36,12,36,23],[13,1,37,2],[13,3,13,23],[28,15,28,17],[29,3,29,23],[30,3,30,6],[30,7,30,9],[30,18,30,20],[30,21,30,23],[26,3,27,3],[26,6,27,6],[26,9,27,11],[26,12,27,14],[26,15,27,17],[26,18,28,23],[28,3,28,5],[28,6,28,8],[28,9,28,11],[28,12,28,14],[24,3,24,23],[25,3,25,5],[25,6,25,8],[25,9,25,11],[25,12,25,14],[25,15,25,17],[25,18,25,23],[21,21,21,23],[22,3,22,5],[22,6,22,8],[22,9,22,11],[22,12,22,14],[22,15,22,17],[22,18,22,20],[22,21,22,23],[21,3,21,5],[21,6,21,8],[21,9,21,11],[21,12,21,14],[21,15,21,17],[21,18,21,20],[19,3,19,8],[19,9,19,11],[19,12,19,14],[19,15,19,17],[19,18,19,20],[19,21,19,23],[15,12,15,14],[15,15,15,17],[15,18,15,20],[15,21,15,23],[17,3,17,23],[18,3,18,8],[18,9,18,11],[18,12,18,14],[18,15,18,17],[18,18,18,20],[15,3,15,7],[15,8,15,11],[9,1,9,7],[9,8,9,23],[10,1,10,7],[10,8,10,23],[11,1,11,7],[11,8,11,23],[18,21,18,23],[1,1,1,23],[4,1,4,23],[6,1,6,23],[7,1,7,7],[7,8,7,23],[8,1,8,7],[8,8,8,23],[14,3,14,7],[14,8,14,11],[14,12,14,14],[14,15,14,17],[14,18,14,20],[14,21,14,23]]}
[]
[null,"Club Application Form"]
[]
[]
[null,"Thank you for taking the time to complete the Satellite Clubs Application Form and your support to get 1 million Londoners more active by 2020!"]
[]
[null,"Applicant Details"]
[null,"Lead Contact Name",null,null,null,null,null,null,{"$f":"'Project 1'!I8:X8","v":0}]
[null,"Name of Club / Organisation",null,null,null,null,null,null,{"$f":"'Project 1'!I9:X9","v":0}]
[null,"Lead Contact Role",null,null,null,null,null,null,{"$f":"'Project 1'!I10:X10","v":0}]
[null,"Email",null,null,null,null,null,null,{"$f":"'Project 1'!I11:X11","v":0}]
[null,"Phone Number ",null,null,null,null,null,null,{"$f":"'Project 1'!I12:X12","v":0}]
[]
[null,"New Project",null,"Club Information"]
[null,null,null,"Club Delivering",null,null,null,null,"Hub Club Type",null,null,null,"Hub Club Postcode",null,null,"Sport",null,null,"Sport Discipline",null,null,"Sport (Other)"]
[null,null,null,"Insert name of club delivering",null,null,null,null,"Select from drop down list",null,null,null,"Insert postcode",null,null,"Select from drop down list",null,null,"Select from drop down list",null,null,"Required if you selected 'Other'"]
[]
[null,null,null,"Satellite Club Information"]
[null,null,null,"School(s)/College(s)",null,null,null,null,null,"Satellite Club venue",null,null,"Venue Borough",null,null,"Venue Postcode",null,null,"Venue Type",null,null,"Age Focus"]
[null,null,null,"Insert venue of sessions",null,null,null,null,null,"Insert venue of sessions",null,null,"Select from drop down list",null,null,"Insert postcode",null,null,"Select from drop down list",null,null,"Select from drop down list"]
[]
[null,null,null,"Number of Weeks",null,null,"Hours per Week",null,null,"Start Date",null,null,"Day",null,null,"Time",null,null,"Club Focus",null,null,"First Year Funded"]
[null,null,null,30,null,null,"Select from drop down list",null,null,"Insert confirmed start date",null,null,"Select from drop down list",null,null,"Insert start and end time",null,null,"Select from drop down list",null,null,"Select from drop down list"]
[]
[null,null,null,"Budget Information"]
[null,null,null,"Coach/Volunteer costs",null,null,"Facility Hire",null,null,"Equipment",null,null,"Other",null,null,"Income",null,null,"Notes"]
[null,null,null,"Cost/hr",{"$f":"D23","v":30},{"$f":"G23","v":"Select from drop down list"},"Cost/hr",{"$f":"D23","v":30},{"$f":"G23","v":"Select from drop down list"},"Please include the cost of purchasing/hiring equipment",null,null,"Please include any other costs, inc asst. coach",null,null,"Please include any income (e.g. NGB funding, participant fees)",null,null,"Please provide an itemised breakdown and description of equipment/other costs"]
[null,null,null,null,"wks","hrs/wk",null,"wks","hrs/wk"]
[null,null,null,{"$f":"SUM(D27*E27*F27)","v":{"$error":"#VALUE!"}},null,null,{"$f":"SUM(G27*H27*I27)","v":{"$error":"#VALUE!"}},null,null,"Insert cost here",null,null,"Insert cost here",null,null,"Insert cost here"]
[]
[null,null,null,"Total Funding Requested",null,null,null,{"$f":"SUMIF(D29:O29,\">0\")-(SUMIF(P29,\">0\"))","v":0},null,null,null,null,null,null,null,null,null,null,"Reporting to",null,null,"Select from drop down list"]
[]
[null,null,null,"SUSTAINABILITY",null,null,"How will you ensure your Satellite Club is sustainable and continues beyond the funding period? Think about;"]
[null,null,null,null,null,null,"How will you generate an income?",null,null,null,null,null,"Examples: Charge participants, create membership packages, sponsorship, fundraising events"]
[null,null,null,null,null,null,"Will you charge participants? How much?",null,null,null,null,null,"Examples: Each participant will be charged £2.50 per session or £25 per term (12 weeks)"]
[null,null,null,null,null,null,"Will training be offered?",null,null,null,null,null,"Examples: access Coaching Bursary to upskill and train coaches, volunteers and participants"]
[null,null,null,null,null,null,"How will you create pathways for participants?",null,null,null,null,null,"Examples: participants sent to hub club, Satellite Club used as club beginner session"]
[null,null,null,null,null,null,"What incentives will you offer for continued participation?",null,null,null,null,null,"Examples: regular verbal praise and feedback, discounted hub club membership"]
[]
[null,"Please tick the boxes and agree that you will;",null,null,null,null,null,null,null,null,null,null,null,null,null,null,null,null,null,null,null,null,"ü"]
[null,"Ensure that the club responsible for satellite club delivery will have appropriate and up to date insurance documentation"]
[null,"Ensure that the club responsible for satellite club delivery will have appropriate and up to date health and safety policy and safeguarding policy"]
[null,"Ensure that the coach(s) leading and overseeing satellite club delivery has appropriate and up to date qualifications and experience"]
[null,"Ensure the delivery of the satellite club is in an appropriate and safe facility at all times"]
[null,"Ensure the satellite club is delivered for a minimum of 2 school terms and weekly sessions take place outside of curriculum hours"]
[null,"Ensure the satellite club is delivered to the target audience of 14-25 year olds, and take the necessary steps to ensure delivery is inclusive"]
[null,"Promote and encourage less sporty and inactive young people to participate in your satellite club"]
[null,"Deliver activities in an informal and social environment to meet the needs of the young people in attendance"]
[null,"Make the necessary plans to ensure that exits routes are provided and the satellite club is sustained long term beyond the funding period"]
[null,"Monitor and report all relevant participation data to the NGB as and when required and agreed"]
[null,"Use all funding grants as they are intended and keep relevant records as evidence"]

{"sheet":"Project 14","index":15,"n_rows":51,"n_cols":23,"rows_kept":51,"cut":false,"hidden":true,"merged":[[50,1,50,21],[50,22,50,23],[47,1,47,21],[47,22,47,23],[48,1,48,21],[48,22,48,23],[49,1,49,21],[49,22,49,23],[44,1,44,21],[44,22,44,23],[45,1,45,21],[45,22,45,23],[46,1,46,21],[46,22,46,23],[41,1,41,21],[41,22,41,23],[42,1,42,21],[42,22,42,23],[43,1,43,21],[43,22,43,23],[37,6,37,11],[37,12,37,23],[39,1,39,21],[39,22,39,23],[40,1,40,21],[40,22,40,23],[32,3,37,5],[32,6,32,23],[33,6,33,11],[33,12,33,23],[34,6,34,11],[34,12,34,23],[35,6,35,11],[35,12,35,23],[36,6,36,11],[36,12,36,23],[13,1,37,2],[13,3,13,23],[28,15,28,17],[29,3,29,23],[30,3,30,6],[30,7,30,9],[30,18,30,20],[30,21,30,23],[26,3,27,3],[26,6,27,6],[26,9,27,11],[26,12,27,14],[26,15,27,17],[26,18,28,23],[28,3,28,5],[28,6,28,8],[28,9,28,11],[28,12,28,14],[24,3,24,23],[25,3,25,5],[25,6,25,8],[25,9,25,11],[25,12,25,14],[25,15,25,17],[25,18,25,23],[21,21,21,23],[22,3,22,5],[22,6,22,8],[22,9,22,11],[22,12,22,14],[22,15,22,17],[22,18,22,20],[22,21,22,23],[21,3,21,5],[21,6,21,8],[21,9,21,11],[21,12,21,14],[21,15,21,17],[21,18,21,20],[19,3,19,8],[19,9,19,11],[19,12,19,14],[19,15,19,17],[19,18,19,20],[19,21,19,23],[15,12,15,14],[15,15,15,17],[15,18,15,20],[15,21,15,23],[17,3,17,23],[18,3,18,8],[18,9,18,11],[18,12,18,14],[18,15,18,17],[18,18,18,20],[15,3,15,7],[15,8,15,11],[9,1,9,7],[9,8,9,23],[10,1,10,7],[10,8,10,23],[11,1,11,7],[11,8,11,23],[18,21,18,23],[1,1,1,23],[4,1,4,23],[6,1,6,23],[7,1,7,7],[7,8,7,23],[8,1,8,7],[8,8,8,23],[14,3,14,7],[14,8,14,11],[14,12,14,14],[14,15,14,17],[14,18,14,20],[14,21,14,23]]}
[]
[null,"Club Application Form"]
[]
[]
[null,"Thank you for taking the time to complete the Satellite Clubs Application Form and your support to get 1 million Londoners more active by 2020!"]
[]
[null,"Applicant Details"]
[null,"Lead Contact Name",null,null,null,null,null,null,{"$f":"'Project 1'!I8:X8","v":0}]
[null,"Name of Club / Organisation",null,null,null,null,null,null,{"$f":"'Project 1'!I9:X9","v":0}]
[null,"Lead Contact Role",null,null,null,null,null,null,{"$f":"'Project 1'!I10:X10","v":0}]
[null,"Email",null,null,null,null,null,null,{"$f":"'Project 1'!I11:X11","v":0}]
[null,"Phone Number ",null,null,null,null,null,null,{"$f":"'Project 1'!I12:X12","v":0}]
[]
[null,"New Project",null,"Club Information"]
[null,null,null,"Club Delivering",null,null,null,null,"Hub Club Type",null,null,null,"Hub Club Postcode",null,null,"Sport",null,null,"Sport Discipline",null,null,"Sport (Other)"]
[null,null,null,"Insert name of club delivering",null,null,null,null,"Select from drop down list",null,null,null,"Insert postcode",null,null,"Select from drop down list",null,null,"Select from drop down list",null,null,"Required if you selected 'Other'"]
[]
[null,null,null,"Satellite Club Information"]
[null,null,null,"School(s)/College(s)",null,null,null,null,null,"Satellite Club venue",null,null,"Venue Borough",null,null,"Venue Postcode",null,null,"Venue Type",null,null,"Age Focus"]
[null,null,null,"Insert venue of sessions",null,null,null,null,null,"Insert venue of sessions",null,null,"Select from drop down list",null,null,"Insert postcode",null,null,"Select from drop down list",null,null,"Select from drop down list"]
[]
[null,null,null,"Number of Weeks",null,null,"Hours per Week",null,null,"Start Date",null,null,"Day",null,null,"Time",null,null,"Club Focus",null,null,"First Year Funded"]
[null,null,null,30,null,null,"Select from drop down list",null,null,"Insert confirmed start date",null,null,"Select from drop down list",null,null,"Insert start and end time",null,null,"Select from drop down list",null,null,"Select from drop down list"]
[]
[null,null,null,"Budget Information"]
[null,null,null,"Coach/Volunteer costs",null,null,"Facility Hire",null,null,"Equipment",null,null,"Other",null,null,"Income",null,null,"Notes"]
[null,null,null,"Cost/hr",{"$f":"D23","v":30},{"$f":"G23","v":"Select from drop down list"},"Cost/hr",{"$f":"D23","v":30},{"$f":"G23","v":"Select from drop down list"},"Please include the cost of purchasing/hiring equipment",null,null,"Please include any other costs, inc asst. coach",null,null,"Please include any income (e.g. NGB funding, participant fees)",null,null,"Please provide an itemised breakdown and description of equipment/other costs"]
[null,null,null,null,"wks","hrs/wk",null,"wks","hrs/wk"]
[null,null,null,{"$f":"SUM(D27*E27*F27)","v":{"$error":"#VALUE!"}},null,null,{"$f":"SUM(G27*H27*I27)","v":{"$error":"#VALUE!"}},null,null,"Insert cost here",null,null,"Insert cost here",null,null,"Insert cost here"]
[]
[null,null,null,"Total Funding Requested",null,null,null,{"$f":"SUMIF(D29:O29,\">0\")-(SUMIF(P29,\">0\"))","v":0},null,null,null,null,null,null,null,null,null,null,"Reporting to",null,null,"Select from drop down list"]
[]
[null,null,null,"SUSTAINABILITY",null,null,"How will you ensure your Satellite Club is sustainable and continues beyond the funding period? Think about;"]
[null,null,null,null,null,null,"How will you generate an income?",null,null,null,null,null,"Examples: Charge participants, create membership packages, sponsorship, fundraising events"]
[null,null,null,null,null,null,"Will you charge participants? How much?",null,null,null,null,null,"Examples: Each participant will be charged £2.50 per session or £25 per term (12 weeks)"]
[null,null,null,null,null,null,"Will training be offered?",null,null,null,null,null,"Examples: access Coaching Bursary to upskill and train coaches, volunteers and participants"]
[null,null,null,null,null,null,"How will you create pathways for participants?",null,null,null,null,null,"Examples: participants sent to hub club, Satellite Club used as club beginner session"]
[null,null,null,null,null,null,"What incentives will you offer for continued participation?",null,null,null,null,null,"Examples: regular verbal praise and feedback, discounted hub club membership"]
[]
[null,"Please tick the boxes and agree that you will;",null,null,null,null,null,null,null,null,null,null,null,null,null,null,null,null,null,null,null,null,"ü"]
[null,"Ensure that the club responsible for satellite club delivery will have appropriate and up to date insurance documentation"]
[null,"Ensure that the club responsible for satellite club delivery will have appropriate and up to date health and safety policy and safeguarding policy"]
[null,"Ensure that the coach(s) leading and overseeing satellite club delivery has appropriate and up to date qualifications and experience"]
[null,"Ensure the delivery of the satellite club is in an appropriate and safe facility at all times"]
[null,"Ensure the satellite club is delivered for a minimum of 2 school terms and weekly sessions take place outside of curriculum hours"]
[null,"Ensure the satellite club is delivered to the target audience of 14-25 year olds, and take the necessary steps to ensure delivery is inclusive"]
[null,"Promote and encourage less sporty and inactive young people to participate in your satellite club"]
[null,"Deliver activities in an informal and social environment to meet the needs of the young people in attendance"]
[null,"Make the necessary plans to ensure that exits routes are provided and the satellite club is sustained long term beyond the funding period"]
[null,"Monitor and report all relevant participation data to the NGB as and when required and agreed"]
[null,"Use all funding grants as they are intended and keep relevant records as evidence"]

{"sheet":"Project 15","index":16,"n_rows":51,"n_cols":23,"rows_kept":51,"cut":false,"hidden":true,"merged":[[50,1,50,21],[50,22,50,23],[47,1,47,21],[47,22,47,23],[48,1,48,21],[48,22,48,23],[49,1,49,21],[49,22,49,23],[44,1,44,21],[44,22,44,23],[45,1,45,21],[45,22,45,23],[46,1,46,21],[46,22,46,23],[41,1,41,21],[41,22,41,23],[42,1,42,21],[42,22,42,23],[43,1,43,21],[43,22,43,23],[37,6,37,11],[37,12,37,23],[39,1,39,21],[39,22,39,23],[40,1,40,21],[40,22,40,23],[32,3,37,5],[32,6,32,23],[33,6,33,11],[33,12,33,23],[34,6,34,11],[34,12,34,23],[35,6,35,11],[35,12,35,23],[36,6,36,11],[36,12,36,23],[13,1,37,2],[13,3,13,23],[28,15,28,17],[29,3,29,23],[30,3,30,6],[30,7,30,9],[30,18,30,20],[30,21,30,23],[26,3,27,3],[26,6,27,6],[26,9,27,11],[26,12,27,14],[26,15,27,17],[26,18,28,23],[28,3,28,5],[28,6,28,8],[28,9,28,11],[28,12,28,14],[24,3,24,23],[25,3,25,5],[25,6,25,8],[25,9,25,11],[25,12,25,14],[25,15,25,17],[25,18,25,23],[21,21,21,23],[22,3,22,5],[22,6,22,8],[22,9,22,11],[22,12,22,14],[22,15,22,17],[22,18,22,20],[22,21,22,23],[21,3,21,5],[21,6,21,8],[21,9,21,11],[21,12,21,14],[21,15,21,17],[21,18,21,20],[19,3,19,8],[19,9,19,11],[19,12,19,14],[19,15,19,17],[19,18,19,20],[19,21,19,23],[15,12,15,14],[15,15,15,17],[15,18,15,20],[15,21,15,23],[17,3,17,23],[18,3,18,8],[18,9,18,11],[18,12,18,14],[18,15,18,17],[18,18,18,20],[15,3,15,7],[15,8,15,11],[9,1,9,7],[9,8,9,23],[10,1,10,7],[10,8,10,23],[11,1,11,7],[11,8,11,23],[18,21,18,23],[1,1,1,23],[4,1,4,23],[6,1,6,23],[7,1,7,7],[7,8,7,23],[8,1,8,7],[8,8,8,23],[14,3,14,7],[14,8,14,11],[14,12,14,14],[14,15,14,17],[14,18,14,20],[14,21,14,23]]}
[]
[null,"Club Application Form"]
[]
[]
[null,"Thank you for taking the time to complete the Satellite Clubs Application Form and your support to get 1 million Londoners more active by 2020!"]
[]
[null,"Applicant Details"]
[null,"Lead Contact Name",null,null,null,null,null,null,{"$f":"'Project 1'!I8:X8","v":0}]
[null,"Name of Club / Organisation",null,null,null,null,null,null,{"$f":"'Project 1'!I9:X9","v":0}]
[null,"Lead Contact Role",null,null,null,null,null,null,{"$f":"'Project 1'!I10:X10","v":0}]
[null,"Email",null,null,null,null,null,null,{"$f":"'Project 1'!I11:X11","v":0}]
[null,"Phone Number ",null,null,null,null,null,null,{"$f":"'Project 1'!I12:X12","v":0}]
[]
[null,"New Project",null,"Club Information"]
[null,null,null,"Club Delivering",null,null,null,null,"Hub Club Type",null,null,null,"Hub Club Postcode",null,null,"Sport",null,null,"Sport Discipline",null,null,"Sport (Other)"]
[null,null,null,"Insert name of club delivering",null,null,null,null,"Select from drop down list",null,null,null,"Insert postcode",null,null,"Select from drop down list",null,null,"Select from drop down list",null,null,"Required if you selected 'Other'"]
[]
[null,null,null,"Satellite Club Information"]
[null,null,null,"School(s)/College(s)",null,null,null,null,null,"Satellite Club venue",null,null,"Venue Borough",null,null,"Venue Postcode",null,null,"Venue Type",null,null,"Age Focus"]
[null,null,null,"Insert venue of sessions",null,null,null,null,null,"Insert venue of sessions",null,null,"Select from drop down list",null,null,"Insert postcode",null,null,"Select from drop down list",null,null,"Select from drop down list"]
[]
[null,null,null,"Number of Weeks",null,null,"Hours per Week",null,null,"Start Date",null,null,"Day",null,null,"Time",null,null,"Club Focus",null,null,"First Year Funded"]
[null,null,null,30,null,null,"Select from drop down list",null,null,"Insert confirmed start date",null,null,"Select from drop down list",null,null,"Insert start and end time",null,null,"Select from drop down list",null,null,"Select from drop down list"]
[]
[null,null,null,"Budget Information"]
[null,null,null,"Coach/Volunteer costs",null,null,"Facility Hire",null,null,"Equipment",null,null,"Other",null,null,"Income",null,null,"Notes"]
[null,null,null,"Cost/hr",{"$f":"D23","v":30},{"$f":"G23","v":"Select from drop down list"},"Cost/hr",{"$f":"D23","v":30},{"$f":"G23","v":"Select from drop down list"},"Please include the cost of purchasing/hiring equipment",null,null,"Please include any other costs, inc asst. coach",null,null,"Please include any income (e.g. NGB funding, participant fees)",null,null,"Please provide an itemised breakdown and description of equipment/other costs"]
[null,null,null,null,"wks","hrs/wk",null,"wks","hrs/wk"]
[null,null,null,{"$f":"SUM(D27*E27*F27)","v":{"$error":"#VALUE!"}},null,null,{"$f":"SUM(G27*H27*I27)","v":{"$error":"#VALUE!"}},null,null,"Insert cost here",null,null,"Insert cost here",null,null,"Insert cost here"]
[]
[null,null,null,"Total Funding Requested",null,null,null,{"$f":"SUMIF(D29:O29,\">0\")-(SUMIF(P29,\">0\"))","v":0},null,null,null,null,null,null,null,null,null,null,"Reporting to",null,null,"Select from drop down list"]
[]
[null,null,null,"SUSTAINABILITY",null,null,"How will you ensure your Satellite Club is sustainable and continues beyond the funding period? Think about;"]
[null,null,null,null,null,null,"How will you generate an income?",null,null,null,null,null,"Examples: Charge participants, create membership packages, sponsorship, fundraising events"]
[null,null,null,null,null,null,"Will you charge participants? How much?",null,null,null,null,null,"Examples: Each participant will be charged £2.50 per session or £25 per term (12 weeks)"]
[null,null,null,null,null,null,"Will training be offered?",null,null,null,null,null,"Examples: access Coaching Bursary to upskill and train coaches, volunteers and participants"]
[null,null,null,null,null,null,"How will you create pathways for participants?",null,null,null,null,null,"Examples: participants sent to hub club, Satellite Club used as club beginner session"]
[null,null,null,null,null,null,"What incentives will you offer for continued participation?",null,null,null,null,null,"Examples: regular verbal praise and feedback, discounted hub club membership"]
[]
[null,"Please tick the boxes and agree that you will;",null,null,null,null,null,null,null,null,null,null,null,null,null,null,null,null,null,null,null,null,"ü"]
[null,"Ensure that the club responsible for satellite club delivery will have appropriate and up to date insurance documentation"]
[null,"Ensure that the club responsible for satellite club delivery will have appropriate and up to date health and safety policy and safeguarding policy"]
[null,"Ensure that the coach(s) leading and overseeing satellite club delivery has appropriate and up to date qualifications and experience"]
[null,"Ensure the delivery of the satellite club is in an appropriate and safe facility at all times"]
[null,"Ensure the satellite club is delivered for a minimum of 2 school terms and weekly sessions take place outside of curriculum hours"]
[null,"Ensure the satellite club is delivered to the target audience of 14-25 year olds, and take the necessary steps to ensure delivery is inclusive"]
[null,"Promote and encourage less sporty and inactive young people to participate in your satellite club"]
[null,"Deliver activities in an informal and social environment to meet the needs of the young people in attendance"]
[null,"Make the necessary plans to ensure that exits routes are provided and the satellite club is sustained long term beyond the funding period"]
[null,"Monitor and report all relevant participation data to the NGB as and when required and agreed"]
[null,"Use all funding grants as they are intended and keep relevant records as evidence"]

{"sheet":"Project 16","index":17,"n_rows":51,"n_cols":23,"rows_kept":51,"cut":false,"hidden":true,"merged":[[50,1,50,21],[50,22,50,23],[47,1,47,21],[47,22,47,23],[48,1,48,21],[48,22,48,23],[49,1,49,21],[49,22,49,23],[44,1,44,21],[44,22,44,23],[45,1,45,21],[45,22,45,23],[46,1,46,21],[46,22,46,23],[41,1,41,21],[41,22,41,23],[42,1,42,21],[42,22,42,23],[43,1,43,21],[43,22,43,23],[37,6,37,11],[37,12,37,23],[39,1,39,21],[39,22,39,23],[40,1,40,21],[40,22,40,23],[32,3,37,5],[32,6,32,23],[33,6,33,11],[33,12,33,23],[34,6,34,11],[34,12,34,23],[35,6,35,11],[35,12,35,23],[36,6,36,11],[36,12,36,23],[13,1,37,2],[13,3,13,23],[28,15,28,17],[29,3,29,23],[30,3,30,6],[30,7,30,9],[30,18,30,20],[30,21,30,23],[26,3,27,3],[26,6,27,6],[26,9,27,11],[26,12,27,14],[26,15,27,17],[26,18,28,23],[28,3,28,5],[28,6,28,8],[28,9,28,11],[28,12,28,14],[24,3,24,23],[25,3,25,5],[25,6,25,8],[25,9,25,11],[25,12,25,14],[25,15,25,17],[25,18,25,23],[21,21,21,23],[22,3,22,5],[22,6,22,8],[22,9,22,11],[22,12,22,14],[22,15,22,17],[22,18,22,20],[22,21,22,23],[21,3,21,5],[21,6,21,8],[21,9,21,11],[21,12,21,14],[21,15,21,17],[21,18,21,20],[19,3,19,8],[19,9,19,11],[19,12,19,14],[19,15,19,17],[19,18,19,20],[19,21,19,23],[15,12,15,14],[15,15,15,17],[15,18,15,20],[15,21,15,23],[17,3,17,23],[18,3,18,8],[18,9,18,11],[18,12,18,14],[18,15,18,17],[18,18,18,20],[15,3,15,7],[15,8,15,11],[9,1,9,7],[9,8,9,23],[10,1,10,7],[10,8,10,23],[11,1,11,7],[11,8,11,23],[18,21,18,23],[1,1,1,23],[4,1,4,23],[6,1,6,23],[7,1,7,7],[7,8,7,23],[8,1,8,7],[8,8,8,23],[14,3,14,7],[14,8,14,11],[14,12,14,14],[14,15,14,17],[14,18,14,20],[14,21,14,23]]}
[]
[null,"Club Application Form"]
[]
[]
[null,"Thank you for taking the time to complete the Satellite Clubs Application Form and your support to get 1 million Londoners more active by 2020!"]
[]
[null,"Applicant Details"]
[null,"Lead Contact Name",null,null,null,null,null,null,{"$f":"'Project 1'!I8:X8","v":0}]
[null,"Name of Club / Organisation",null,null,null,null,null,null,{"$f":"'Project 1'!I9:X9","v":0}]
[null,"Lead Contact Role",null,null,null,null,null,null,{"$f":"'Project 1'!I10:X10","v":0}]
[null,"Email",null,null,null,null,null,null,{"$f":"'Project 1'!I11:X11","v":0}]
[null,"Phone Number ",null,null,null,null,null,null,{"$f":"'Project 1'!I12:X12","v":0}]
[]
[null,"New Project",null,"Club Information"]
[null,null,null,"Club Delivering",null,null,null,null,"Hub Club Type",null,null,null,"Hub Club Postcode",null,null,"Sport",null,null,"Sport Discipline",null,null,"Sport (Other)"]
[null,null,null,"Insert name of club delivering",null,null,null,null,"Select from drop down list",null,null,null,"Insert postcode",null,null,"Select from drop down list",null,null,"Select from drop down list",null,null,"Required if you selected 'Other'"]
[]
[null,null,null,"Satellite Club Information"]
[null,null,null,"School(s)/College(s)",null,null,null,null,null,"Satellite Club venue",null,null,"Venue Borough",null,null,"Venue Postcode",null,null,"Venue Type",null,null,"Age Focus"]
[null,null,null,"Insert venue of sessions",null,null,null,null,null,"Insert venue of sessions",null,null,"Select from drop down list",null,null,"Insert postcode",null,null,"Select from drop down list",null,null,"Select from drop down list"]
[]
[null,null,null,"Number of Weeks",null,null,"Hours per Week",null,null,"Start Date",null,null,"Day",null,null,"Time",null,null,"Club Focus",null,null,"First Year Funded"]
[null,null,null,30,null,null,"Select from drop down list",null,null,"Insert confirmed start date",null,null,"Select from drop down list",null,null,"Insert start and end time",null,null,"Select from drop down list",null,null,"Select from drop down list"]
[]
[null,null,null,"Budget Information"]
[null,null,null,"Coach/Volunteer costs",null,null,"Facility Hire",null,null,"Equipment",null,null,"Other",null,null,"Income",null,null,"Notes"]
[null,null,null,"Cost/hr",{"$f":"D23","v":30},{"$f":"G23","v":"Select from drop down list"},"Cost/hr",{"$f":"D23","v":30},{"$f":"G23","v":"Select from drop down list"},"Please include the cost of purchasing/hiring equipment",null,null,"Please include any other costs, inc asst. coach",null,null,"Please include any income (e.g. NGB funding, participant fees)",null,null,"Please provide an itemised breakdown and description of equipment/other costs"]
[null,null,null,null,"wks","hrs/wk",null,"wks","hrs/wk"]
[null,null,null,{"$f":"SUM(D27*E27*F27)","v":{"$error":"#VALUE!"}},null,null,{"$f":"SUM(G27*H27*I27)","v":{"$error":"#VALUE!"}},null,null,"Insert cost here",null,null,"Insert cost here",null,null,"Insert cost here"]
[]
[null,null,null,"Total Funding Requested",null,null,null,{"$f":"SUMIF(D29:O29,\">0\")-(SUMIF(P29,\">0\"))","v":0},null,null,null,null,null,null,null,null,null,null,"Reporting to",null,null,"Select from drop down list"]
[]
[null,null,null,"SUSTAINABILITY",null,null,"How will you ensure your Satellite Club is sustainable and continues beyond the funding period? Think about;"]
[null,null,null,null,null,null,"How will you generate an income?",null,null,null,null,null,"Examples: Charge participants, create membership packages, sponsorship, fundraising events"]
[null,null,null,null,null,null,"Will you charge participants? How much?",null,null,null,null,null,"Examples: Each participant will be charged £2.50 per session or £25 per term (12 weeks)"]
[null,null,null,null,null,null,"Will training be offered?",null,null,null,null,null,"Examples: access Coaching Bursary to upskill and train coaches, volunteers and participants"]
[null,null,null,null,null,null,"How will you create pathways for participants?",null,null,null,null,null,"Examples: participants sent to hub club, Satellite Club used as club beginner session"]
[null,null,null,null,null,null,"What incentives will you offer for continued participation?",null,null,null,null,null,"Examples: regular verbal praise and feedback, discounted hub club membership"]
[]
[null,"Please tick the boxes and agree that you will;",null,null,null,null,null,null,null,null,null,null,null,null,null,null,null,null,null,null,null,null,"ü"]
[null,"Ensure that the club responsible for satellite club delivery will have appropriate and up to date insurance documentation"]
[null,"Ensure that the club responsible for satellite club delivery will have appropriate and up to date health and safety policy and safeguarding policy"]
[null,"Ensure that the coach(s) leading and overseeing satellite club delivery has appropriate and up to date qualifications and experience"]
[null,"Ensure the delivery of the satellite club is in an appropriate and safe facility at all times"]
[null,"Ensure the satellite club is delivered for a minimum of 2 school terms and weekly sessions take place outside of curriculum hours"]
[null,"Ensure the satellite club is delivered to the target audience of 14-25 year olds, and take the necessary steps to ensure delivery is inclusive"]
[null,"Promote and encourage less sporty and inactive young people to participate in your satellite club"]
[null,"Deliver activities in an informal and social environment to meet the needs of the young people in attendance"]
[null,"Make the necessary plans to ensure that exits routes are provided and the satellite club is sustained long term beyond the funding period"]
[null,"Monitor and report all relevant participation data to the NGB as and when required and agreed"]
[null,"Use all funding grants as they are intended and keep relevant records as evidence"]

{"sheet":"Project 17","index":18,"n_rows":51,"n_cols":23,"rows_kept":51,"cut":false,"hidden":true,"merged":[[50,1,50,21],[50,22,50,23],[47,1,47,21],[47,22,47,23],[48,1,48,21],[48,22,48,23],[49,1,49,21],[49,22,49,23],[44,1,44,21],[44,22,44,23],[45,1,45,21],[45,22,45,23],[46,1,46,21],[46,22,46,23],[41,1,41,21],[41,22,41,23],[42,1,42,21],[42,22,42,23],[43,1,43,21],[43,22,43,23],[37,6,37,11],[37,12,37,23],[39,1,39,21],[39,22,39,23],[40,1,40,21],[40,22,40,23],[32,3,37,5],[32,6,32,23],[33,6,33,11],[33,12,33,23],[34,6,34,11],[34,12,34,23],[35,6,35,11],[35,12,35,23],[36,6,36,11],[36,12,36,23],[13,1,37,2],[13,3,13,23],[28,15,28,17],[29,3,29,23],[30,3,30,6],[30,7,30,9],[30,18,30,20],[30,21,30,23],[26,3,27,3],[26,6,27,6],[26,9,27,11],[26,12,27,14],[26,15,27,17],[26,18,28,23],[28,3,28,5],[28,6,28,8],[28,9,28,11],[28,12,28,14],[24,3,24,23],[25,3,25,5],[25,6,25,8],[25,9,25,11],[25,12,25,14],[25,15,25,17],[25,18,25,23],[21,21,21,23],[22,3,22,5],[22,6,22,8],[22,9,22,11],[22,12,22,14],[22,15,22,17],[22,18,22,20],[22,21,22,23],[21,3,21,5],[21,6,21,8],[21,9,21,11],[21,12,21,14],[21,15,21,17],[21,18,21,20],[19,3,19,8],[19,9,19,11],[19,12,19,14],[19,15,19,17],[19,18,19,20],[19,21,19,23],[15,12,15,14],[15,15,15,17],[15,18,15,20],[15,21,15,23],[17,3,17,23],[18,3,18,8],[18,9,18,11],[18,12,18,14],[18,15,18,17],[18,18,18,20],[15,3,15,7],[15,8,15,11],[9,1,9,7],[9,8,9,23],[10,1,10,7],[10,8,10,23],[11,1,11,7],[11,8,11,23],[18,21,18,23],[1,1,1,23],[4,1,4,23],[6,1,6,23],[7,1,7,7],[7,8,7,23],[8,1,8,7],[8,8,8,23],[14,3,14,7],[14,8,14,11],[14,12,14,14],[14,15,14,17],[14,18,14,20],[14,21,14,23]]}
[]
[null,"Club Application Form"]
[]
[]
[null,"Thank you for taking the time to complete the Satellite Clubs Application Form and your support to get 1 million Londoners more active by 2020!"]
[]
[null,"Applicant Details"]
[null,"Lead Contact Name",null,null,null,null,null,null,{"$f":"'Project 1'!I8:X8","v":0}]
[null,"Name of Club / Organisation",null,null,null,null,null,null,{"$f":"'Project 1'!I9:X9","v":0}]
[null,"Lead Contact Role",null,null,null,null,null,null,{"$f":"'Project 1'!I10:X10","v":0}]
[null,"Email",null,null,null,null,null,null,{"$f":"'Project 1'!I11:X11","v":0}]
[null,"Phone Number ",null,null,null,null,null,null,{"$f":"'Project 1'!I12:X12","v":0}]
[]
[null,"New Project",null,"Club Information"]
[null,null,null,"Club Delivering",null,null,null,null,"Hub Club Type",null,null,null,"Hub Club Postcode",null,null,"Sport",null,null,"Sport Discipline",null,null,"Sport (Other)"]
[null,null,null,"Insert name of club delivering",null,null,null,null,"Select from drop down list",null,null,null,"Insert postcode",null,null,"Select from drop down list",null,null,"Select from drop down list",null,null,"Required if you selected 'Other'"]
[]
[null,null,null,"Satellite Club Information"]
[null,null,null,"School(s)/College(s)",null,null,null,null,null,"Satellite Club venue",null,null,"Venue Borough",null,null,"Venue Postcode",null,null,"Venue Type",null,null,"Age Focus"]
[null,null,null,"Insert venue of sessions",null,null,null,null,null,"Insert venue of sessions",null,null,"Select from drop down list",null,null,"Insert postcode",null,null,"Select from drop down list",null,null,"Select from drop down list"]
[]
[null,null,null,"Number of Weeks",null,null,"Hours per Week",null,null,"Start Date",null,null,"Day",null,null,"Time",null,null,"Club Focus",null,null,"First Year Funded"]
[null,null,null,30,null,null,"Select from drop down list",null,null,"Insert confirmed start date",null,null,"Select from drop down list",null,null,"Insert start and end time",null,null,"Select from drop down list",null,null,"Select from drop down list"]
[]
[null,null,null,"Budget Information"]
[null,null,null,"Coach/Volunteer costs",null,null,"Facility Hire",null,null,"Equipment",null,null,"Other",null,null,"Income",null,null,"Notes"]
[null,null,null,"Cost/hr",{"$f":"D23","v":30},{"$f":"G23","v":"Select from drop down list"},"Cost/hr",{"$f":"D23","v":30},{"$f":"G23","v":"Select from drop down list"},"Please include the cost of purchasing/hiring equipment",null,null,"Please include any other costs, inc asst. coach",null,null,"Please include any income (e.g. NGB funding, participant fees)",null,null,"Please provide an itemised breakdown and description of equipment/other costs"]
[null,null,null,null,"wks","hrs/wk",null,"wks","hrs/wk"]
[null,null,null,{"$f":"SUM(D27*E27*F27)","v":{"$error":"#VALUE!"}},null,null,{"$f":"SUM(G27*H27*I27)","v":{"$error":"#VALUE!"}},null,null,"Insert cost here",null,null,"Insert cost here",null,null,"Insert cost here"]
[]
[null,null,null,"Total Funding Requested",null,null,null,{"$f":"SUMIF(D29:O29,\">0\")-(SUMIF(P29,\">0\"))","v":0},null,null,null,null,null,null,null,null,null,null,"Reporting to",null,null,"Select from drop down list"]
[]
[null,null,null,"SUSTAINABILITY",null,null,"How will you ensure your Satellite Club is sustainable and continues beyond the funding period? Think about;"]
[null,null,null,null,null,null,"How will you generate an income?",null,null,null,null,null,"Examples: Charge participants, create membership packages, sponsorship, fundraising events"]
[null,null,null,null,null,null,"Will you charge participants? How much?",null,null,null,null,null,"Examples: Each participant will be charged £2.50 per session or £25 per term (12 weeks)"]
[null,null,null,null,null,null,"Will training be offered?",null,null,null,null,null,"Examples: access Coaching Bursary to upskill and train coaches, volunteers and participants"]
[null,null,null,null,null,null,"How will you create pathways for participants?",null,null,null,null,null,"Examples: participants sent to hub club, Satellite Club used as club beginner session"]
[null,null,null,null,null,null,"What incentives will you offer for continued participation?",null,null,null,null,null,"Examples: regular verbal praise and feedback, discounted hub club membership"]
[]
[null,"Please tick the boxes and agree that you will;",null,null,null,null,null,null,null,null,null,null,null,null,null,null,null,null,null,null,null,null,"ü"]
[null,"Ensure that the club responsible for satellite club delivery will have appropriate and up to date insurance documentation"]
[null,"Ensure that the club responsible for satellite club delivery will have appropriate and up to date health and safety policy and safeguarding policy"]
[null,"Ensure that the coach(s) leading and overseeing satellite club delivery has appropriate and up to date qualifications and experience"]
[null,"Ensure the delivery of the satellite club is in an appropriate and safe facility at all times"]
[null,"Ensure the satellite club is delivered for a minimum of 2 school terms and weekly sessions take place outside of curriculum hours"]
[null,"Ensure the satellite club is delivered to the target audience of 14-25 year olds, and take the necessary steps to ensure delivery is inclusive"]
[null,"Promote and encourage less sporty and inactive young people to participate in your satellite club"]
[null,"Deliver activities in an informal and social environment to meet the needs of the young people in attendance"]
[null,"Make the necessary plans to ensure that exits routes are provided and the satellite club is sustained long term beyond the funding period"]
[null,"Monitor and report all relevant participation data to the NGB as and when required and agreed"]
[null,"Use all funding grants as they are intended and keep relevant records as evidence"]

{"sheet":"Project 18","index":19,"n_rows":51,"n_cols":23,"rows_kept":51,"cut":false,"hidden":true,"merged":[[50,1,50,21],[50,22,50,23],[47,1,47,21],[47,22,47,23],[48,1,48,21],[48,22,48,23],[49,1,49,21],[49,22,49,23],[44,1,44,21],[44,22,44,23],[45,1,45,21],[45,22,45,23],[46,1,46,21],[46,22,46,23],[41,1,41,21],[41,22,41,23],[42,1,42,21],[42,22,42,23],[43,1,43,21],[43,22,43,23],[37,6,37,11],[37,12,37,23],[39,1,39,21],[39,22,39,23],[40,1,40,21],[40,22,40,23],[32,3,37,5],[32,6,32,23],[33,6,33,11],[33,12,33,23],[34,6,34,11],[34,12,34,23],[35,6,35,11],[35,12,35,23],[36,6,36,11],[36,12,36,23],[13,1,37,2],[13,3,13,23],[28,15,28,17],[29,3,29,23],[30,3,30,6],[30,7,30,9],[30,18,30,20],[30,21,30,23],[26,3,27,3],[26,6,27,6],[26,9,27,11],[26,12,27,14],[26,15,27,17],[26,18,28,23],[28,3,28,5],[28,6,28,8],[28,9,28,11],[28,12,28,14],[24,3,24,23],[25,3,25,5],[25,6,25,8],[25,9,25,11],[25,12,25,14],[25,15,25,17],[25,18,25,23],[21,21,21,23],[22,3,22,5],[22,6,22,8],[22,9,22,11],[22,12,22,14],[22,15,22,17],[22,18,22,20],[22,21,22,23],[21,3,21,5],[21,6,21,8],[21,9,21,11],[21,12,21,14],[21,15,21,17],[21,18,21,20],[19,3,19,8],[19,9,19,11],[19,12,19,14],[19,15,19,17],[19,18,19,20],[19,21,19,23],[15,12,15,14],[15,15,15,17],[15,18,15,20],[15,21,15,23],[17,3,17,23],[18,3,18,8],[18,9,18,11],[18,12,18,14],[18,15,18,17],[18,18,18,20],[15,3,15,7],[15,8,15,11],[9,1,9,7],[9,8,9,23],[10,1,10,7],[10,8,10,23],[11,1,11,7],[11,8,11,23],[18,21,18,23],[1,1,1,23],[4,1,4,23],[6,1,6,23],[7,1,7,7],[7,8,7,23],[8,1,8,7],[8,8,8,23],[14,3,14,7],[14,8,14,11],[14,12,14,14],[14,15,14,17],[14,18,14,20],[14,21,14,23]]}
[]
[null,"Club Application Form"]
[]
[]
[null,"Thank you for taking the time to complete the Satellite Clubs Application Form and your support to get 1 million Londoners more active by 2020!"]
[]
[null,"Applicant Details"]
[null,"Lead Contact Name",null,null,null,null,null,null,{"$f":"'Project 1'!I8:X8","v":0}]
[null,"Name of Club / Organisation",null,null,null,null,null,null,{"$f":"'Project 1'!I9:X9","v":0}]
[null,"Lead Contact Role",null,null,null,null,null,null,{"$f":"'Project 1'!I10:X10","v":0}]
[null,"Email",null,null,null,null,null,null,{"$f":"'Project 1'!I11:X11","v":0}]
[null,"Phone Number ",null,null,null,null,null,null,{"$f":"'Project 1'!I12:X12","v":0}]
[]
[null,"New Project",null,"Club Information"]
[null,null,null,"Club Delivering",null,null,null,null,"Hub Club Type",null,null,null,"Hub Club Postcode",null,null,"Sport",null,null,"Sport Discipline",null,null,"Sport (Other)"]
[null,null,null,"Insert name of club delivering",null,null,null,null,"Select from drop down list",null,null,null,"Insert postcode",null,null,"Select from drop down list",null,null,"Select from drop down list",null,null,"Required if you selected 'Other'"]
[]
[null,null,null,"Satellite Club Information"]
[null,null,null,"School(s)/College(s)",null,null,null,null,null,"Satellite Club venue",null,null,"Venue Borough",null,null,"Venue Postcode",null,null,"Venue Type",null,null,"Age Focus"]
[null,null,null,"Insert venue of sessions",null,null,null,null,null,"Insert venue of sessions",null,null,"Select from drop down list",null,null,"Insert postcode",null,null,"Select from drop down list",null,null,"Select from drop down list"]
[]
[null,null,null,"Number of Weeks",null,null,"Hours per Week",null,null,"Start Date",null,null,"Day",null,null,"Time",null,null,"Club Focus",null,null,"First Year Funded"]
[null,null,null,30,null,null,"Select from drop down list",null,null,"Insert confirmed start date",null,null,"Select from drop down list",null,null,"Insert start and end time",null,null,"Select from drop down list",null,null,"Select from drop down list"]
[]
[null,null,null,"Budget Information"]
[null,null,null,"Coach/Volunteer costs",null,null,"Facility Hire",null,null,"Equipment",null,null,"Other",null,null,"Income",null,null,"Notes"]
[null,null,null,"Cost/hr",{"$f":"D23","v":30},{"$f":"G23","v":"Select from drop down list"},"Cost/hr",{"$f":"D23","v":30},{"$f":"G23","v":"Select from drop down list"},"Please include the cost of purchasing/hiring equipment",null,null,"Please include any other costs, inc asst. coach",null,null,"Please include any income (e.g. NGB funding, participant fees)",null,null,"Please provide an itemised breakdown and description of equipment/other costs"]
[null,null,null,null,"wks","hrs/wk",null,"wks","hrs/wk"]
[null,null,null,{"$f":"SUM(D27*E27*F27)","v":{"$error":"#VALUE!"}},null,null,{"$f":"SUM(G27*H27*I27)","v":{"$error":"#VALUE!"}},null,null,"Insert cost here",null,null,"Insert cost here",null,null,"Insert cost here"]
[]
[null,null,null,"Total Funding Requested",null,null,null,{"$f":"SUMIF(D29:O29,\">0\")-(SUMIF(P29,\">0\"))","v":0},null,null,null,null,null,null,null,null,null,null,"Reporting to",null,null,"Select from drop down list"]
[]
[null,null,null,"SUSTAINABILITY",null,null,"How will you ensure your Satellite Club is sustainable and continues beyond the funding period? Think about;"]
[null,null,null,null,null,null,"How will you generate an income?",null,null,null,null,null,"Examples: Charge participants, create membership packages, sponsorship, fundraising events"]
[null,null,null,null,null,null,"Will you charge participants? How much?",null,null,null,null,null,"Examples: Each participant will be charged £2.50 per session or £25 per term (12 weeks)"]
[null,null,null,null,null,null,"Will training be offered?",null,null,null,null,null,"Examples: access Coaching Bursary to upskill and train coaches, volunteers and participants"]
[null,null,null,null,null,null,"How will you create pathways for participants?",null,null,null,null,null,"Examples: participants sent to hub club, Satellite Club used as club beginner session"]
[null,null,null,null,null,null,"What incentives will you offer for continued participation?",null,null,null,null,null,"Examples: regular verbal praise and feedback, discounted hub club membership"]
[]
[null,"Please tick the boxes and agree that you will;",null,null,null,null,null,null,null,null,null,null,null,null,null,null,null,null,null,null,null,null,"ü"]
[null,"Ensure that the club responsible for satellite club delivery will have appropriate and up to date insurance documentation"]
[null,"Ensure that the club responsible for satellite club delivery will have appropriate and up to date health and safety policy and safeguarding policy"]
[null,"Ensure that the coach(s) leading and overseeing satellite club delivery has appropriate and up to date qualifications and experience"]
[null,"Ensure the delivery of the satellite club is in an appropriate and safe facility at all times"]
[null,"Ensure the satellite club is delivered for a minimum of 2 school terms and weekly sessions take place outside of curriculum hours"]
[null,"Ensure the satellite club is delivered to the target audience of 14-25 year olds, and take the necessary steps to ensure delivery is inclusive"]
[null,"Promote and encourage less sporty and inactive young people to participate in your satellite club"]
[null,"Deliver activities in an informal and social environment to meet the needs of the young people in attendance"]
[null,"Make the necessary plans to ensure that exits routes are provided and the satellite club is sustained long term beyond the funding period"]
[null,"Monitor and report all relevant participation data to the NGB as and when required and agreed"]
[null,"Use all funding grants as they are intended and keep relevant records as evidence"]

{"sheet":"Project 19","index":20,"n_rows":51,"n_cols":23,"rows_kept":51,"cut":false,"hidden":true,"merged":[[50,1,50,21],[50,22,50,23],[47,1,47,21],[47,22,47,23],[48,1,48,21],[48,22,48,23],[49,1,49,21],[49,22,49,23],[44,1,44,21],[44,22,44,23],[45,1,45,21],[45,22,45,23],[46,1,46,21],[46,22,46,23],[41,1,41,21],[41,22,41,23],[42,1,42,21],[42,22,42,23],[43,1,43,21],[43,22,43,23],[37,6,37,11],[37,12,37,23],[39,1,39,21],[39,22,39,23],[40,1,40,21],[40,22,40,23],[32,3,37,5],[32,6,32,23],[33,6,33,11],[33,12,33,23],[34,6,34,11],[34,12,34,23],[35,6,35,11],[35,12,35,23],[36,6,36,11],[36,12,36,23],[13,1,37,2],[13,3,13,23],[28,15,28,17],[29,3,29,23],[30,3,30,6],[30,7,30,9],[30,18,30,20],[30,21,30,23],[26,3,27,3],[26,6,27,6],[26,9,27,11],[26,12,27,14],[26,15,27,17],[26,18,28,23],[28,3,28,5],[28,6,28,8],[28,9,28,11],[28,12,28,14],[24,3,24,23],[25,3,25,5],[25,6,25,8],[25,9,25,11],[25,12,25,14],[25,15,25,17],[25,18,25,23],[21,21,21,23],[22,3,22,5],[22,6,22,8],[22,9,22,11],[22,12,22,14],[22,15,22,17],[22,18,22,20],[22,21,22,23],[21,3,21,5],[21,6,21,8],[21,9,21,11],[21,12,21,14],[21,15,21,17],[21,18,21,20],[19,3,19,8],[19,9,19,11],[19,12,19,14],[19,15,19,17],[19,18,19,20],[19,21,19,23],[15,12,15,14],[15,15,15,17],[15,18,15,20],[15,21,15,23],[17,3,17,23],[18,3,18,8],[18,9,18,11],[18,12,18,14],[18,15,18,17],[18,18,18,20],[15,3,15,7],[15,8,15,11],[9,1,9,7],[9,8,9,23],[10,1,10,7],[10,8,10,23],[11,1,11,7],[11,8,11,23],[18,21,18,23],[1,1,1,23],[4,1,4,23],[6,1,6,23],[7,1,7,7],[7,8,7,23],[8,1,8,7],[8,8,8,23],[14,3,14,7],[14,8,14,11],[14,12,14,14],[14,15,14,17],[14,18,14,20],[14,21,14,23]]}
[]
[null,"Club Application Form"]
[]
[]
[null,"Thank you for taking the time to complete the Satellite Clubs Application Form and your support to get 1 million Londoners more active by 2020!"]
[]
[null,"Applicant Details"]
[null,"Lead Contact Name",null,null,null,null,null,null,{"$f":"'Project 1'!I8:X8","v":0}]
[null,"Name of Club / Organisation",null,null,null,null,null,null,{"$f":"'Project 1'!I9:X9","v":0}]
[null,"Lead Contact Role",null,null,null,null,null,null,{"$f":"'Project 1'!I10:X10","v":0}]
[null,"Email",null,null,null,null,null,null,{"$f":"'Project 1'!I11:X11","v":0}]
[null,"Phone Number ",null,null,null,null,null,null,{"$f":"'Project 1'!I12:X12","v":0}]
[]
[null,"New Project",null,"Club Information"]
[null,null,null,"Club Delivering",null,null,null,null,"Hub Club Type",null,null,null,"Hub Club Postcode",null,null,"Sport",null,null,"Sport Discipline",null,null,"Sport (Other)"]
[null,null,null,"Insert name of club delivering",null,null,null,null,"Select from drop down list",null,null,null,"Insert postcode",null,null,"Select from drop down list",null,null,"Select from drop down list",null,null,"Required if you selected 'Other'"]
[]
[null,null,null,"Satellite Club Information"]
[null,null,null,"School(s)/College(s)",null,null,null,null,null,"Satellite Club venue",null,null,"Venue Borough",null,null,"Venue Postcode",null,null,"Venue Type",null,null,"Age Focus"]
[null,null,null,"Insert venue of sessions",null,null,null,null,null,"Insert venue of sessions",null,null,"Select from drop down list",null,null,"Insert postcode",null,null,"Select from drop down list",null,null,"Select from drop down list"]
[]
[null,null,null,"Number of Weeks",null,null,"Hours per Week",null,null,"Start Date",null,null,"Day",null,null,"Time",null,null,"Club Focus",null,null,"First Year Funded"]
[null,null,null,30,null,null,"Select from drop down list",null,null,"Insert confirmed start date",null,null,"Select from drop down list",null,null,"Insert start and end time",null,null,"Select from drop down list",null,null,"Select from drop down list"]
[]
[null,null,null,"Budget Information"]
[null,null,null,"Coach/Volunteer costs",null,null,"Facility Hire",null,null,"Equipment",null,null,"Other",null,null,"Income",null,null,"Notes"]
[null,null,null,"Cost/hr",{"$f":"D23","v":30},{"$f":"G23","v":"Select from drop down list"},"Cost/hr",{"$f":"D23","v":30},{"$f":"G23","v":"Select from drop down list"},"Please include the cost of purchasing/hiring equipment",null,null,"Please include any other costs, inc asst. coach",null,null,"Please include any income (e.g. NGB funding, participant fees)",null,null,"Please provide an itemised breakdown and description of equipment/other costs"]
[null,null,null,null,"wks","hrs/wk",null,"wks","hrs/wk"]
[null,null,null,{"$f":"SUM(D27*E27*F27)","v":{"$error":"#VALUE!"}},null,null,{"$f":"SUM(G27*H27*I27)","v":{"$error":"#VALUE!"}},null,null,"Insert cost here",null,null,"Insert cost here",null,null,"Insert cost here"]
[]
[null,null,null,"Total Funding Requested",null,null,null,{"$f":"SUMIF(D29:O29,\">0\")-(SUMIF(P29,\">0\"))","v":0},null,null,null,null,null,null,null,null,null,null,"Reporting to",null,null,"Select from drop down list"]
[]
[null,null,null,"SUSTAINABILITY",null,null,"How will you ensure your Satellite Club is sustainable and continues beyond the funding period? Think about;"]
[null,null,null,null,null,null,"How will you generate an income?",null,null,null,null,null,"Examples: Charge participants, create membership packages, sponsorship, fundraising events"]
[null,null,null,null,null,null,"Will you charge participants? How much?",null,null,null,null,null,"Examples: Each participant will be charged £2.50 per session or £25 per term (12 weeks)"]
[null,null,null,null,null,null,"Will training be offered?",null,null,null,null,null,"Examples: access Coaching Bursary to upskill and train coaches, volunteers and participants"]
[null,null,null,null,null,null,"How will you create pathways for participants?",null,null,null,null,null,"Examples: participants sent to hub club, Satellite Club used as club beginner session"]
[null,null,null,null,null,null,"What incentives will you offer for continued participation?",null,null,null,null,null,"Examples: regular verbal praise and feedback, discounted hub club membership"]
[]
[null,"Please tick the boxes and agree that you will;",null,null,null,null,null,null,null,null,null,null,null,null,null,null,null,null,null,null,null,null,"ü"]
[null,"Ensure that the club responsible for satellite club delivery will have appropriate and up to date insurance documentation"]
[null,"Ensure that the club responsible for satellite club delivery will have appropriate and up to date health and safety policy and safeguarding policy"]
[null,"Ensure that the coach(s) leading and overseeing satellite club delivery has appropriate and up to date qualifications and experience"]
[null,"Ensure the delivery of the satellite club is in an appropriate and safe facility at all times"]
[null,"Ensure the satellite club is delivered for a minimum of 2 school terms and weekly sessions take place outside of curriculum hours"]
[null,"Ensure the satellite club is delivered to the target audience of 14-25 year olds, and take the necessary steps to ensure delivery is inclusive"]
[null,"Promote and encourage less sporty and inactive young people to participate in your satellite club"]
[null,"Deliver activities in an informal and social environment to meet the needs of the young people in attendance"]
[null,"Make the necessary plans to ensure that exits routes are provided and the satellite club is sustained long term beyond the funding period"]
[null,"Monitor and report all relevant participation data to the NGB as and when required and agreed"]
[null,"Use all funding grants as they are intended and keep relevant records as evidence"]

{"sheet":"Project 20","index":21,"n_rows":51,"n_cols":23,"rows_kept":51,"cut":false,"hidden":true,"merged":[[50,1,50,21],[50,22,50,23],[47,1,47,21],[47,22,47,23],[48,1,48,21],[48,22,48,23],[49,1,49,21],[49,22,49,23],[44,1,44,21],[44,22,44,23],[45,1,45,21],[45,22,45,23],[46,1,46,21],[46,22,46,23],[41,1,41,21],[41,22,41,23],[42,1,42,21],[42,22,42,23],[43,1,43,21],[43,22,43,23],[37,6,37,11],[37,12,37,23],[39,1,39,21],[39,22,39,23],[40,1,40,21],[40,22,40,23],[32,3,37,5],[32,6,32,23],[33,6,33,11],[33,12,33,23],[34,6,34,11],[34,12,34,23],[35,6,35,11],[35,12,35,23],[36,6,36,11],[36,12,36,23],[13,1,37,2],[13,3,13,23],[28,15,28,17],[29,3,29,23],[30,3,30,6],[30,7,30,9],[30,18,30,20],[30,21,30,23],[26,3,27,3],[26,6,27,6],[26,9,27,11],[26,12,27,14],[26,15,27,17],[26,18,28,23],[28,3,28,5],[28,6,28,8],[28,9,28,11],[28,12,28,14],[24,3,24,23],[25,3,25,5],[25,6,25,8],[25,9,25,11],[25,12,25,14],[25,15,25,17],[25,18,25,23],[21,21,21,23],[22,3,22,5],[22,6,22,8],[22,9,22,11],[22,12,22,14],[22,15,22,17],[22,18,22,20],[22,21,22,23],[21,3,21,5],[21,6,21,8],[21,9,21,11],[21,12,21,14],[21,15,21,17],[21,18,21,20],[19,3,19,8],[19,9,19,11],[19,12,19,14],[19,15,19,17],[19,18,19,20],[19,21,19,23],[15,12,15,14],[15,15,15,17],[15,18,15,20],[15,21,15,23],[17,3,17,23],[18,3,18,8],[18,9,18,11],[18,12,18,14],[18,15,18,17],[18,18,18,20],[15,3,15,7],[15,8,15,11],[9,1,9,7],[9,8,9,23],[10,1,10,7],[10,8,10,23],[11,1,11,7],[11,8,11,23],[18,21,18,23],[1,1,1,23],[4,1,4,23],[6,1,6,23],[7,1,7,7],[7,8,7,23],[8,1,8,7],[8,8,8,23],[14,3,14,7],[14,8,14,11],[14,12,14,14],[14,15,14,17],[14,18,14,20],[14,21,14,23]]}
[]
[null,"Club Application Form"]
[]
[]
[null,"Thank you for taking the time to complete the Satellite Clubs Application Form and your support to get 1 million Londoners more active by 2020!"]
[]
[null,"Applicant Details"]
[null,"Lead Contact Name",null,null,null,null,null,null,{"$f":"'Project 1'!I8:X8","v":0}]
[null,"Name of Club / Organisation",null,null,null,null,null,null,{"$f":"'Project 1'!I9:X9","v":0}]
[null,"Lead Contact Role",null,null,null,null,null,null,{"$f":"'Project 1'!I10:X10","v":0}]
[null,"Email",null,null,null,null,null,null,{"$f":"'Project 1'!I11:X11","v":0}]
[null,"Phone Number ",null,null,null,null,null,null,{"$f":"'Project 1'!I12:X12","v":0}]
[]
[null,"New Project",null,"Club Information"]
[null,null,null,"Club Delivering",null,null,null,null,"Hub Club Type",null,null,null,"Hub Club Postcode",null,null,"Sport",null,null,"Sport Discipline",null,null,"Sport (Other)"]
[null,null,null,"Insert name of club delivering",null,null,null,null,"Select from drop down list",null,null,null,"Insert postcode",null,null,"Select from drop down list",null,null,"Select from drop down list",null,null,"Required if you selected 'Other'"]
[]
[null,null,null,"Satellite Club Information"]
[null,null,null,"School(s)/College(s)",null,null,null,null,null,"Satellite Club venue",null,null,"Venue Borough",null,null,"Venue Postcode",null,null,"Venue Type",null,null,"Age Focus"]
[null,null,null,"Insert venue of sessions",null,null,null,null,null,"Insert venue of sessions",null,null,"Select from drop down list",null,null,"Insert postcode",null,null,"Select from drop down list",null,null,"Select from drop down list"]
[]
[null,null,null,"Number of Weeks",null,null,"Hours per Week",null,null,"Start Date",null,null,"Day",null,null,"Time",null,null,"Club Focus",null,null,"First Year Funded"]
[null,null,null,30,null,null,"Select from drop down list",null,null,"Insert confirmed start date",null,null,"Select from drop down list",null,null,"Insert start and end time",null,null,"Select from drop down list",null,null,"Select from drop down list"]
[]
[null,null,null,"Budget Information"]
[null,null,null,"Coach/Volunteer costs",null,null,"Facility Hire",null,null,"Equipment",null,null,"Other",null,null,"Income",null,null,"Notes"]
[null,null,null,"Cost/hr",{"$f":"D23","v":30},{"$f":"G23","v":"Select from drop down list"},"Cost/hr",{"$f":"D23","v":30},{"$f":"G23","v":"Select from drop down list"},"Please include the cost of purchasing/hiring equipment",null,null,"Please include any other costs, inc asst. coach",null,null,"Please include any income (e.g. NGB funding, participant fees)",null,null,"Please provide an itemised breakdown and description of equipment/other costs"]
[null,null,null,null,"wks","hrs/wk",null,"wks","hrs/wk"]
[null,null,null,{"$f":"SUM(D27*E27*F27)","v":{"$error":"#VALUE!"}},null,null,{"$f":"SUM(G27*H27*I27)","v":{"$error":"#VALUE!"}},null,null,"Insert cost here",null,null,"Insert cost here",null,null,"Insert cost here"]
[]
[null,null,null,"Total Funding Requested",null,null,null,{"$f":"SUMIF(D29:O29,\">0\")-(SUMIF(P29,\">0\"))","v":0},null,null,null,null,null,null,null,null,null,null,"Reporting to",null,null,"Select from drop down list"]
[]
[null,null,null,"SUSTAINABILITY",null,null,"How will you ensure your Satellite Club is sustainable and continues beyond the funding period? Think about;"]
[null,null,null,null,null,null,"How will you generate an income?",null,null,null,null,null,"Examples: Charge participants, create membership packages, sponsorship, fundraising events"]
[null,null,null,null,null,null,"Will you charge participants? How much?",null,null,null,null,null,"Examples: Each participant will be charged £2.50 per session or £25 per term (12 weeks)"]
[null,null,null,null,null,null,"Will training be offered?",null,null,null,null,null,"Examples: access Coaching Bursary to upskill and train coaches, volunteers and participants"]
[null,null,null,null,null,null,"How will you create pathways for participants?",null,null,null,null,null,"Examples: participants sent to hub club, Satellite Club used as club beginner session"]
[null,null,null,null,null,null,"What incentives will you offer for continued participation?",null,null,null,null,null,"Examples: regular verbal praise and feedback, discounted hub club membership"]
[]
[null,"Please tick the boxes and agree that you will;",null,null,null,null,null,null,null,null,null,null,null,null,null,null,null,null,null,null,null,null,"ü"]
[null,"Ensure that the club responsible for satellite club delivery will have appropriate and up to date insurance documentation"]
[null,"Ensure that the club responsible for satellite club delivery will have appropriate and up to date health and safety policy and safeguarding policy"]
[null,"Ensure that the coach(s) leading and overseeing satellite club delivery has appropriate and up to date qualifications and experience"]
[null,"Ensure the delivery of the satellite club is in an appropriate and safe facility at all times"]
[null,"Ensure the satellite club is delivered for a minimum of 2 school terms and weekly sessions take place outside of curriculum hours"]
[null,"Ensure the satellite club is delivered to the target audience of 14-25 year olds, and take the necessary steps to ensure delivery is inclusive"]
[null,"Promote and encourage less sporty and inactive young people to participate in your satellite club"]
[null,"Deliver activities in an informal and social environment to meet the needs of the young people in attendance"]
[null,"Make the necessary plans to ensure that exits routes are provided and the satellite club is sustained long term beyond the funding period"]
[null,"Monitor and report all relevant participation data to the NGB as and when required and agreed"]
[null,"Use all funding grants as they are intended and keep relevant records as evidence"]

{"sheet":".","index":22,"n_rows":51,"n_cols":24,"rows_kept":51,"cut":false,"hidden":true,"merged":[[17,3,17,23],[18,21,18,23],[19,3,19,8],[11,1,11,7],[11,8,11,23],[14,15,14,17],[14,18,14,20],[14,21,14,23],[15,3,15,7],[15,8,15,11],[15,12,15,14],[15,15,15,17],[15,18,15,20],[15,21,15,23],[19,12,19,14],[19,15,19,17],[19,18,19,20],[19,21,19,23],[18,3,18,8],[18,9,18,11],[18,12,18,14],[18,15,18,17],[18,18,18,20],[13,1,37,2],[1,1,1,23],[4,1,4,23],[6,1,6,23],[7,1,7,7],[7,8,7,23],[9,1,9,7],[9,8,9,23],[10,1,10,7],[10,8,10,23],[8,1,8,7],[8,8,8,23],[41,1,41,22],[24,3,24,23],[25,3,25,5],[25,6,25,8],[25,9,25,11],[25,12,25,14],[25,15,25,17],[25,18,25,23],[30,21,30,23],[26,9,27,11],[26,12,27,14],[26,15,27,17],[29,3,29,23],[30,3,30,6],[30,7,30,9],[30,18,30,20],[26,18,28,23],[28,9,28,11],[28,12,28,14],[28,15,28,17],[26,3,27,3],[26,6,27,6],[28,3,28,5],[28,6,28,8],[13,3,13,23],[14,3,14,7],[14,8,14,11],[14,12,14,14],[37,6,37,11],[37,12,37,23],[39,1,39,22],[40,1,40,22],[21,21,21,23],[22,3,22,5],[22,6,22,8],[22,9,22,11],[22,12,22,14],[22,15,22,17],[22,18,22,20],[22,21,22,23],[21,3,21,5],[21,6,21,8],[21,9,21,11],[21,12,21,14],[21,15,21,17],[21,18,21,20],[19,9,19,11],[32,3,37,5],[32,6,32,23],[33,6,33,11],[33,12,33,23],[34,6,34,11],[34,12,34,23],[35,6,35,11],[35,12,35,23],[36,6,36,11],[36,12,36,23],[49,1,49,22],[50,1,50,22],[43,1,43,22],[44,1,44,22],[45,1,45,22],[46,1,46,22],[47,1,47,22],[48,1,48,22],[42,1,42,22]]}
[]
[null,"Club Application Form"]
[]
[]
[null,"Thank you for taking the time to complete the Satellite Clubs Delivery Plan and your support to get 1 million Londoners more active by 2020!"]
[]
[null,"Applicant Details"]
[null,"Lead Contact Name"]
[null,"Name of Club / Organisation"]
[null,"Lead Contact Role"]
[null,"Email"]
[null,"Phone Number "]
[]
[null,"New Project",null,"Club Information"]
[null,null,null,"Club Delivering",null,null,null,null,"Hub Club Type",null,null,null,"Hub Club Postcode",null,null,"Sport",null,null,"Sport Discipline",null,null,"Sport (Other)"]
[null,null,null,"Insert name of club delivering",null,null,null,null,"Select from drop down list",null,null,null,"Insert postcode",null,null,"Select from drop down list",null,null,"Select from drop down list",null,null,"Required if you selected 'Other'"]
[]
[null,null,null,"Satellite Club Information"]
[null,null,null,"School(s)/College(s)",null,null,null,null,null,"Satellite Club venue",null,null,"Venue Borough",null,null,"Venue Postcode",null,null,"Venue Type",null,null,"Age Focus"]
[null,null,null,"Insert venue of sessions",null,null,null,null,null,"Insert venue of sessions",null,null,"Select from drop down list",null,null,"Insert postcode",null,null,"Select from drop down list",null,null,"Select from drop down list"]
[]
[null,null,null,"Number of Weeks",null,null,"Hours per Week",null,null,"Start Date",null,null,"Day",null,null,"Time",null,null,"Club Focus",null,null,"First Year Funded"]
[null,null,null,30,null,null,"Select from drop down list",null,null,"Insert confirmed start date",null,null,"Select from drop down list",null,null,"Insert start and end time",null,null,"Select from drop down list",null,null,"Select from drop down list"]
[]
[null,null,null,"Budget Information"]
[null,null,null,"Coach/Volunteer costs",null,null,"Facility Hire",null,null,"Equipment",null,null,"Other",null,null,"Income",null,null,"Notes"]
[null,null,null,"Cost/hr",{"$f":"D23","v":30},{"$f":"G23","v":"Select from drop down list"},"Cost/hr",{"$f":"D23","v":30},{"$f":"G23","v":"Select from drop down list"},"Please include the cost of purchasing/hiring equipment",null,null,"Please include any other costs, inc asst. coach",null,null,"Please include any income (e.g. NGB funding, participant fees)",null,null,"Please provide an itemised breakdown and description of equipment/other costs"]
[null,null,null,null,"wks","hrs/wk",null,"wks","hrs/wk"]
[null,null,null,{"$f":"SUM(D27*E27*F27)","v":{"$error":"#VALUE!"}},null,null,{"$f":"SUM(G27*H27*I27)","v":{"$error":"#VALUE!"}},null,null,"Insert cost here",null,null,"Insert cost here",null,null,"Insert cost here"]
[]
[null,null,null,"Total Funding Requested",null,null,null,{"$f":"SUMIF(D29:O29,\">0\")-(SUMIF(P29,\">0\"))","v":0},null,null,null,null,null,null,null,null,null,null,"Reporting to",null,null,"Select from drop down list"]
[]
[null,null,null,"SUSTAINABILITY",null,null,"How will you ensure your Satellite Club is sustainable and continues beyond the funding period? Think about;"]
[null,null,null,null,null,null,"How will you generate an income?",null,null,null,null,null,"Examples: Charge participants, create membership packages, sponsorship, fundraising events"]
[null,null,null,null,null,null,"Will you charge participants? How much?",null,null,null,null,null,"Examples: Each participant will be charged £2.50 per session or £25 per term (12 weeks)"]
[null,null,null,null,null,null,"Will training be offered?",null,null,null,null,null,"Examples: access Coaching Bursary to upskill and train coaches, volunteers and participants"]
[null,null,null,null,null,null,"How will you create pathways for participants?",null,null,null,null,null,"Examples: participants sent to hub club, Satellite Club used as club beginner session"]
[null,null,null,null,null,null,"What incentives will you offer for continued participation?",null,null,null,null,null,"Examples: regular verbal praise and feedback, discounted hub club membership"]
[]
[null,"Please tick the boxes and agree that you will;",null,null,null,null,null,null,null,null,null,null,null,null,null,null,null,null,null,null,null,null,null,"ü"]
[null,"Ensure that the club responsible for satellite club delivery will have appropriate and up to date insurance documentation"]
[null,"Ensure that the club responsible for satellite club delivery will have appropriate and up to date health and safety policy and safeguarding policy"]
[null,"Ensure that the coach(s) leading and overseeing satellite club delivery has appropriate and up to date qualifications and experience"]
[null,"Ensure the delivery of the satellite club is in an appropriate and safe facility at all times"]
[null,"Ensure the satellite club is delivered for a minimum of 2 school terms and weekly sessions take place outside of curriculum hours"]
[null,"Ensure the satellite club is delivered to the target audience of 11-25s, and take the necessary steps to ensure delivery is inclusive"]
[null,"Promote and encourage semi-sporty and inactive young people to participate in your satellite club"]
[null,"Deliver activities in an informal and social environment to meet the needs of the young people in attendance"]
[null,"Make the necessary plans to ensure that exits routes are provided and the satellite club is sustained long term beyond the funding period"]
[null,"Monitor and report all relevant participation data to the NGB as and when required and agreed"]
[null,"Use all funding grants as they are intended and keep relevant records as evidence"]

{"sheet":"Sheet2","index":23,"n_rows":55,"n_cols":12,"rows_kept":55,"cut":false,"hidden":true,"merged":[]}
["Sports","Sport discipline","Club focus","Age","Hub club type","Day","Borough","Venue Type",null,"Hrs / Wk","First year funded","YI"]
["Multisport","General Gymnastics","Female focussed","14;15","Community Sports Club","Monday","Barking and Dagenham ","Secondary School",null,1,"2014-15","Positive"]
["American Football","Trampolining (Gymnastics)","Female focussed;Inclusive (disability) focussed","14;15;16","Professional sports club community scheme","Tuesday","Barnet","FE College",null,1.5,"2015-16","Functional"]
["Angling","Freestyle (Gymnastics)","Female focussed;BME focussed","14;15;16;17","Local League","Wednesday","Bexley","Leisure Centre",null,2,"2016-17","Uninterested"]
["Archery","Football","Male focussed","14;15;16;17;18","Commercial Provider","Thursday","Brent","Youth/Community Centre",null,2.5]
["Athletics","Futsal (Football)","Male focussed; Inclusive (disability) focussed","14;15;16;17;18;19","Hub Club in Development","Friday","Bromley","Specialist Facility",null,3]
["Badminton","Track and Field (Athletics)","Male focussed; BME focussed","14;15;16;17;18;19;20","Other","Saturday","Camden","University",null,3.5]
["Baseball/Softball","Running (Athletics)","BME focussed","14;15;16;17;18;19;20;21",null,"Sunday","City of London","NGB Sports Club",null,4]
["Basketball","Athlefit (Athletics)","Inclusive (disability) focussed","14;15;16;17;18;19;20;21;22",null,null,"Croydon","Special School",null,4.5]
["Boccia","Traditional Rugby Union","Inclusive (disability) focussed;BME focussed","14;15;16;17;18;19;20;21;22;23",null,null,"Ealing","Sixth Form College",null,5]
["Bowls","Fitness based (Rugby Union)","No specific focus","14;15;16;17;18;19;20;21;22;23;24",null,null,"Enfield","Park"]
["Boxing","Cheerleading (Dance)",null,"15;16",null,null,"Greenwich ","Middle School"]
["Canoeing","Street Dance","Reporting to","15;16;17",null,null,"Hackney","Professional Sports Club Ground"]
["Cricket","Dance/Fitness","London Sport","15;16;17;18",null,null,"Hammersmith and Fulham ","Primary School"]
["Cycling","Other Dance","NGB","15;16;17;18;19",null,null,"Haringey","Independent School"]
["Dance","Karate (Martial Arts)",null,"15;16;17;18;19;20",null,null,"Harrow","TBC"]
["Dodgeball","Ju-Jitsu (Martial Arts)",null,"15;16;17;18;19;20;21",null,null,"Havering","Other "]
["Equestrian","Aikido (Martial Arts)","ü","15;16;17;18;19;20;21;22",null,null,"Hillingdon","Free School"]
["Fencing","Mixed (Martial Arts)",null,"15;16;17;18;19;20;21;22;23",null,null,"Hounslow","Adult Learning Centre"]
["Football","Sanjuro (Martial Arts)","Add Project","15;16;17;18;19;20;21;22;23;24",null,null,"Islington"]
["Goalball","Recreational (Ice Skating)",3,"16;17",null,null,"Kensington and Chelsea"]
["Golf","Ice Hockey (Ice Skating)","Add Project 3","16;17;18",null,null,"Kingston upon Thames"]
["Gymnastics","Dance (Ice Skating)","Add Project 4","16;17;18;19",null,null,"Lambeth"]
["Handball","Inline/Roller Hockey (Roller Sport)","Add Project 5","16;17;18;19;20",null,null,"Lewisham"]
["Hockey","Roller Derby (Roller Sport)","Add Project 6","16;17;18;19;20;21",null,null,"Merton"]
["Ice -skating","Recreational (Roller Sport)","Add Project 7","16;17;18;19;20;21;22",null,null,"Newham"]
["Judo","Dance (Roller Sport)","Add Project 8","16;17;18;19;20;21;22;23",null,null,"Redbridge"]
["Korfball",null,"Add Project 9","16;17;18;19;20;21;22;23;24",null,null,"Richmond upon Thames"]
["Lacrosse",null,"Add Project 10","17;18",null,null,"Southwark"]
["Martial Arts",null,null,"17;18;19",null,null,"Sutton"]
["Modern Pentathlon",null,null,"17;18;19;20",null,null,"Tower Hamlets"]
["Mountaineering",null,null,"17;18;19;20;21",null,null,"Waltham Forest"]
["Netball",null,null,"17;18;19;20;21;22",null,null,"Wandsworth"]
["Other",null,null,"17;18;19;20;21;22;23",null,null,"Westminster"]
["Roller Sport",null,null,"17;18;19;20;21;22;23;24"]
["Rounders",null,null,"18;19"]
["Rowing",null,null,"18;19;20"]
["Rugby League",null,null,"18;19;20;21"]
["Rugby Union",null,null,"18;19;20;21;22"]
["Sailing",null,null,"18;19;20;21;22;23"]
["Snowsport",null,null,"18;19;20;21;22;23;24"]
["Squash",null,null,"19;20"]
["Swimming",null,null,"19;20;21"]
["Table Tennis",null,null,"19;20;21;22"]
["Tchoukball",null,null,"19;20;21;22;23"]
["Tennis",null,null,"19;20;21;22;23;24"]
["Triathlon",null,null,"20;21"]
["Ultimate",null,null,"20;21;22"]
["Volleyball",null,null,"20;21;22;23"]
["Weightlifting",null,null,"20;21;22;23;24"]
["Wheelchair BB",null,null,"21;22"]
["Wheelchair Rugby",null,null,"21;22;23"]
["Wrestling",null,null,"21;22;23;24"]
["Yoga",null,null,"22;23"]
[null,null,null,"22;23;24"]